Workbook

Sheet Welcome
H3: Older Adults' NHS and Social Care ROI Tool
H4: January, 2020
G9: This is a tool that has been designed for local authorities and other stakeholders in England who wish to assess the return on investment from interventions to reduce the need for social care and health services in older people. The tool has been commissioned by Public Health England and developed by York Health Economics Consortium. The aim of the tool is to aid decision-making and increase the uptake of cost-effective programmes aimed at reducing the need for social care and health services in older people in the community. In total, nine separate programmes are included. These programmes are: - Community singing - Help at home scheme - Befriending - Dementia (nursing homes) - Hospital discharge support - Bundle of VCS services for people with long-term conditions - Interprofessional working (health coaching) - Self-management of COPD - Reablement Using pre-populated English data, the tool analyses the return on investment for adopting each programme within a specific geographical area (e.g. an individual local authority). It is important to note that, dependent on the nature of the intervention, a positive return on investment may not lead to cash releasing savings. The 'return' may be in the form of increased capacity to cope with rising demand, or may be a contribution towards improved quality of life. The model allows users to enter their own data if this is more specific to the local population under investigation and where appropriate includes options to change several model input parameters (e.g. intervention unit costs). The nine programmes included in the tool are not necessarily 'the best' interventions in social care, but those with quality economic evidence suitable for return on investment calculations. The model allows users to enter information on additional interventions through completion of a 'user defined intervention form'. Once completed, the model automatically establishes the return on investment for the user defined intervention in the specified population. The tool contains an in-built user guide providing a step-by-step explanation of how to undertake an analysis, including required methods to update the data. It is recommended that the 'Information' section is read before undertaking any form of analysis which can be accessed using the button on the left.
G38: For more information on the tool, or to provide feedback on its usability, please contact us at: | R38: healtheconomics@phe.gov.uk
G40: Please note that relevant interventions aimed at older people, covered in other RoI tools published by PHE, were outside the scope of modelling in this tool, in order to avoid duplication. This tool aims to address the gap in the evidence covered by other resources. There are several resources that commissioners interested in older people’s health and social care needs may be interested in looking at in the first instance:
G45: ‒ Falls prevention is very relevant to improving the health of older adults. The Falls Prevention ROI tool looks at four interventions, all of which were shown to be cost-effective in comparison with usual care.
G47: The Falls Prevention ROI tool is available: | M47: here
G49: ‒ PHE’s Mental Health ROI tool provides evidence for an intervention addressing loneliness in older people and an intervention aiming to improve the Mental Health of people with long-term physical Health problems.
G51: The Mental Health ROI tool is available: | L51: here
G53: ‒ The Health Economics Evidence Resource (HEER) is a compilation of economic evidence of interventions covering the areas in the Public Health Grant. Some interventions in the HEER are directly targeted at older adults, eg. a community-based walking programme to improve the mental wellbeing of older people is targeted at sedentary older people has an estimated cost/QALY of £7,300.
G56: The HEER tool is available: | K56: here
G58: ‒ The cardiovascular disease RoI tool calculates the costs and benefits of secondary prevention of cardiovascular disease.
G59: The Cardiovascular ROI Tool is available: | L59: here

Sheet 1a) Model guide
G10: Tool sections:
G11: The tool is separated into three main sections: Information (currently selected), Inputs and Results. You can navigate between these using the buttons on the left-hand side. Within each section there are also a number of sub-sections and it is possible to navigate amongst them using the buttons at the top of each page (as seen above). It is also possible to navigate across each of the tool's sections and sub-sections using the tabs at the bottom of the page. These tabs are colour coded based on the section that is chosen (i.e. Information, Inputs and Results).
G13: Navigating around the tool:
G14: When entering the 'Inputs' section each sub-section should be viewed in-turn (moving from left to right) in order to ensure the inputs for the tool are setup in the appropriate way to generate relevant results. More information on how to setup the tool is given in the remaining pages in this section and also using the in-built user guide. Each sub-section within 'Inputs' has its own user guide which can be selected to explain the information that is presented in that sub-section and how the default data can be updated to model new scenarios (i.e. ones specific to your local area).
G16: Colour-coding system:
G17: There are three different types of cells in the tool (inputs, calculations and results) and there is a colour-coding system in place to help distinguish between them:
I19: Input cells contain data for the tool input parameters (e.g. unit costs, efficacy data) and are shown by a yellow background. These cells can be updated if you want to use new values to estimate the tool's results.
I23: Calculation cells contain equations that are used to estimate specific inputs that drive the tool's results. For example, to estimate the cost of staff time for a specific intervention the total number of hours required for one staff type (e.g. nurse) will be multiplied by the hourly rate for that staff member. These cells are shown by a light blue background and the values in these cells shouldn't be altered as this will affect the overall results.
I29: Result cells contain the main outputs from the tool (e.g. total costs) and these can all be found within the 'Results' section. These cells are shown by a light orange background and, as with the calculation cells, the values presented in these cells should not be altered.
G34: Other features:
G35: The tool also contains a number of other features that allow for simple operation, including comment boxes that contain information about specific input parameters (an example can be found above this paragraph, viewable by hovering over the red triangle) and dropdown boxes that can be used to select from a number of different options from a pre-defined list (e.g. selected intervention, geographical area).

Sheet 1b) Model steps
G9: A number of steps must be followed in order to generate relevant results regarding the return on investment for commissioning each of the interventions included in the tool. If you do not wish to update the data sources used for the tool input parameters then it will be possible to generate results using the default data once a small number of variables have been chosen (e.g. geographical location, intervention choice). However, if you wish to update the values using data specific to your local area this will require further steps to generate appropriate results. These steps are summarised below and more information on updating input parameters is given in the in-built user guide.
G11: INPUTS
G13: Intervention (2a)
G14: The return on investment for each included intervention must be assessed individually. Therefore, only one intervention can be chosen for the analysis and this choice should be made using the dropdown menu on the 'Interventions' (2a) page. Within the tool each intervention is compared to current usual care, which is assumed to be no specific interventions to reduce use of social care and health services in older people.
G17: Population (2b)
G18: Each analysis will be undertaken for a specific population. Therefore, the size of this population must be selected. Once you have navigated to the 'Population' (2b) page a specific geographical area can be selected from a pre-defined list using the dropdown menu. The population is then further refined based on assumption regarding eligibility for and uptake of the intervention. Both of eligibility and uptake can be user entered. It will also be possible to input a new value into the 'user defined' cell if you wish to test a population size that isn't included in the list.
G21: Intervention costs (2c)
G22: It is important to accurately capture the cost of each of the interventions included in the tool. Intervention costs have already been entered based on information available in the literature . Intervention costs are estimated based on resource units for the intervention (e.g. the number of staff required to administer the intervention). It is recommended that resource units are left unchanged. However, if you may wish to enter unit costs if these are available for your local area, this can be achieved by viewing the cost breakdown section within the 'Intervention costs' (2c) page.
G26: Outcomes (2d)
G27: The 'Outcomes' (2d) page includes the change in overall cost per patient and other outcome measures relevant to the intervention of interest, such as quality-adjusted life years (QALYs). As with the resource units, it is not recommended that the values presented in this page are updated. If you wish to examine the impact of alternative values (i.e. an increase or reduction in effectiveness for one intervention) then this can be explored in the sensitivity analyses in the results section.
G30: RESULTS
G32: Results summary (3a)
G33: The tool will automatically produce results based on the parameters that are selected in the Inputs section. This means you can switch between the Inputs and Results at any point to examine the impact of changing the value of the input parameters. The main metric for the tool with be the return on investment for each intervention, should it be implemented in the selected geographical area. The return on investment is calculated using the equation outlined below and will be shown on the 'Results summary' (3a) page.
G38: Results charts (3b)
G39: The 'Results charts' (3b) page contains graphical depictions of the main results for the tool and, as with the other results pages, the charts will automatically update based on the parameters selected in the Inputs section.
G43: Sensitivity analysis (3c)
G44: It is necessary to examine the impact of changes in the values adopted for the tool input parameters. This is because there is often uncertainty regarding the value that should be applied and, therefore, it is important to highlight the parameters that have the largest impact on the results. Sensitivity analysis allows an examination of the impact of these changes and is achieved by setting a range, rather than a point estimate, for each input parameter and the tool results update accordingly. The ranges used in the 'Sensitivity analysis' (3d) page establish a threshold value for the model parameters where the return on investment would be equal to £1 (i.e. £1 spent produces £1 saved). Threshold values close to the default (base case) parameter value indicate that only small changes are required in the parameter value to change the return on investment result (i.e. where costs > benefits). In contrast, threshold values a long way from the default (base case) parameter value suggest large changes are required in the initial parameter value for interventions not to produce a return on investment. Care should be taken when looking to implement an intervention which has parameters with wide confidence intervals and threshold values close to the base case as uncertainty in the initial parameter value has the potential to influence the ROI result.

Sheet 1c) Example

Sheet 1d) Disclaimer
G10: Disclaimer:
G11: Public Health England has provided this tool to aid decision-making and cannot be held liable for any investment or other decisions that are made using the information presented. The best available evidence has been used in this tool and assumptions are clearly stated. Local authorities using this tool are advised to seek the support of their Public Health team.
G13: Acknowledgements:
G14: We would like to thank all of the individuals who contributed towards the development of the tool throughout the testing and quality assurance process. This includes all members of the Steering Group and User Group who provided advice and expertise.
G16: Citation:
G17: If you wish to cite this tool please use the following: Public Health England. The Older Adults' Social Care return on investment tool. 2019

Sheet 2a) Interventions
G12: Select intervention:
G14: Study underpinning analysis:
G15: =CHOOSE(IntChoice,I88,I89,I90,I91,I92,I93,I94,I95,I96,I97) -> Dayson et al. (2014). The social and economic impact of the Rotherham Social Prescribing Pilot: main evaluation report.
G20: Intervention as described in study:
G21: =CHOOSE(IntChoice,J88,J89,J90,J91,J92,J93,J94,J95,J96,J97) -> A bundle of voluntary and community sector (VCS) services aimed at patients with long-term conditions (LTCs), using social prescribing and other approaches to put patients in touch with services. The scheme was administered by the VCS liaison service in Rotherham providing patients with a range of services including: befriending, arts and crafts groups, exercise classes, complementary therapy and counselling.
G30: Target population:
G31: =CHOOSE(IntChoice,H88,H89,H90,H91,H92,H93,H94,H95,H96,H97) -> People with long term health conditions. Typically an older population (87% were 60+).
G35: Study characteristics:
G36: Type of study | H36: =VLOOKUP($G$85,$F$100:$K$109,3) -> Uncontrolled before-after study
G37: Country/Region | H37: =VLOOKUP($G$85,$F$100:$K$109,4) -> UK: Rotherham
G38: Sample size | H38: =VLOOKUP($G$85,$F$100:$K$109,5) -> 1607
G39: Time at which outcomes are reported | H39: =VLOOKUP($G$85,$F$100:$K$109,6) -> 1 & 2 years post-baseline
G40: Comparator | H40: =VLOOKUP($G$85,$F$100:$L$109,7) -> No comparator group, scores compared for individuals before and after receiving the intervention
G44: Study limitations:
G45: =CHOOSE(IntChoice,N100,N101,N102,N103,N104,N105,N106,N107,N108,N109) -> Uncontrolled before and after study design. QALYs were not measured directly but derived based on scores on a well-being tool developed specifically for the Social Prescribing pilot study.
G50: Link to study:
G51: https://www.ncbi.nlm.nih.gov/pubmed/26089304
G52: https://www.ncbi.nlm.nih.gov/pubmed/27400985
G53: http://eprints.lse.ac.uk/32311/
G54: https://www.ncbi.nlm.nih.gov/pubmed/29408901
G55: https://www.ncbi.nlm.nih.gov/pubmed/19574331
G56: http://www.instituteofhealthequity.org/resources-reports/the-social-and-economic-impact-of-the-rotherham-social-prescribing-pilot-main-evaluation-report
G57: https://www.ncbi.nlm.nih.gov/pubmed/30183219
G58: https://www.ncbi.nlm.nih.gov/pubmed/23265228
G59: https://pure.york.ac.uk/portal/en/publications/home-care-reablement-services(058c2053-3860-4ae3-aa76-0e3347515289)/export.html
G60: N/A
G85: 6 | H85: =CHOOSE(IntChoice,G88,G89,G90,G91,G92,G93,G94,G95,G96,G97) -> Bundle of VCS services for people with LTCs | K85: User int tick box | L85: FALSE
G87: Intervention | H87: Target population | I87: Study | J87: Description
F88: 1 | G88: Community singing | H88: All those expressing an interest and aged 60 or over. | I88: Coulton et al. Effectiveness and cost-effectiveness of community singing on mental health-related quality of life of older people: randomised controlled trial. Br J Psychiatry. 2015;207(3):250-55. | J88: A 14-week 90-minute programme of participative singing for older people, to improve mental health-related quality of life. Groups are led by facilitators over 90-minute sessions. Participants volunteered for the programme on the basis of publicity. Took place in five centres in East Kent.
F89: 2 | G89: Help at home scheme | H89: People age 55 or over requiring help with day to day activities in their own homes. | I89: Bauer et al. (2017). Costs and economic consequences of a help‐at‐home scheme for older people in England. Health & social care in the community, 25(2), 780-789. | J89: Intervention package comprised: A volunteer-provided face-to-face and telephone befriending scheme; a practical home help service for gardening, shopping and cleaning; and welfare benefit advice service.
F90: 3 | G90: Befriending | H90: People aged over 50 who are lonely/isolated. | I90: Knapp et al. (2011). Mental Health Promotion and Prevention: The Economic Case. London: Personal Social Services Research Unit, London School of Economics and Political Science. | J90: A befriender visits person in their home on a 1:1 basis either for 1hr/week or 1hr/fortnightly. Participants are matched on interests. Visits are unstructured and aim to develop a natural relationship between participants promoting social inclusion, mental health and reducing loneliness.
F91: 4 | G91: Dementia: nursing homes | H91: People with dementia who are currently living in a nursing home. | I91: Ballard et al. (2018). Impact of person-centred care training and person-centred activities on quality of life, agitation, and antipsychotic use in people with dementia living in nursing homes: A cluster-randomised controlled trial. PLoS medicine, 15(2), e1002500. | J91: The WHELD programme, an intervention which aims to reduce agitation in people with dementia living in nursing homes. Provides training for nursing staff in person centred care, social interaction and guidance on the use of antipsychotic medications.
F92: 5 | G92: Hospital discharge support | H92: People with (stage 2 or 3) COPD with impaired exercise capacity. | I92: Hoogendoorn et al. (2010). Is INTERdisciplinary COMmunity-based COPD management (INTERCOM) cost-effective?. European Respiratory Journal, 35(1), 79-87. | J92: The INTERCOM programme: Interdisciplinary community-based COPD management. 4-month programme consisting of exercise training, education, nutritional therapy and smoking cessation counselling offered by community based physiotherapists and dieticians and hospital-based respiratory nurses.
F93: 6 | G93: Bundle of VCS services for people with LTCs | H93: People with long term health conditions. Typically an older population (87% were 60+). | I93: Dayson et al. (2014). The social and economic impact of the Rotherham Social Prescribing Pilot: main evaluation report. | J93: A bundle of voluntary and community sector (VCS) services aimed at patients with long-term conditions (LTCs), using social prescribing and other approaches to put patients in touch with services. The scheme was administered by the VCS liaison service in Rotherham providing patients with a range of services including: befriending, arts and crafts groups, exercise classes, complementary therapy and counselling.
F94: 7 | G94: Interprofessional working (health coaching) | H94: People aged 65 or over who have two or more existing long term conditions. | I94: Bower et al. (2018). Improving care for older people with long-term conditions and social care needs in Salford: the CLASSIC mixed-methods study, including RCT. Health Services and Delivery Research. | J94: Health coaching was introduced as one of several interventions in the Salford Integrated Care Programme which aimed to join together professionals to provide integrated health and social care services. Health coaching involved a regular series of phone calls between patient and professionals to provide support and encouragement to the patient, and promote healthy behaviours such as treatment control, healthy diet, physical activity and mobility, rehabilitation, and good mental health.
F95: 8 | G95: Self-management of COPD | H95: People with moderate to severe COPD (average age 69). | I95: Taylor et al. (2012). Self-management support for moderate-to-severe chronic obstructive pulmonary disease: a pilot randomised controlled trial. Br J Gen Pract, 62(603), e687-e695. | J95: The Better Living with Long term Airways disease (BELLA) intervention addressed five core self-management skills: defining the problem, decision making, finding and using resources, forming partnerships with healthcare providers, and taking action. Each course involved two trained lay (peer) tutors (at least one of whom had COPD), who delivered a structured, manualised, 3-hour session once a week for 7 weeks at a local community centre. One of the sessions included input from a respiratory consultant.
F96: 9 | G96: Reablement | H96: Older people struggling to cope with day to day activities without relying on social care services. | I96: Glendinning et al. (2010). Home care re-ablement services: investigating the longer-term impacts (prospective longitudinal study). York/Canterburry: Social Policy Research Unit (SPRU)/Personal Social Service Research Unit (PSSRU). | J96: Homecare reablement is an approach within home care services which aims to help people do things for themselves rather than relying on social support. The intervention was delivered across five different sites for a period of up to six weeks. A range of interventions were offered including personal care (e.g. assistance with washing and dressing), practical support (e.g. meal preparation), prompting medication, information, psychological and emotional support, increasing social engagements, and advice to reduce the risk of falls.
F97: 10 | G97: =IF($L$85=TRUE,H193,"User defined intervention") -> User defined intervention | H97: =IF($L$85=TRUE,G196,"Please complete user intervention form") -> Please complete user intervention form | I97: =IF($L$85=TRUE,G201,"Please complete user intervention form") -> Please complete user intervention form | J97: =IF($L$85=TRUE,G207,"Please complete user intervention form") -> Please complete user intervention form
H99: Type of study | I99: Country/Region | J99: Sample size | K99: Time at which outcomes reported | L99: Comparator | M99: Time Horizon (months) | N99: Study limitations
F100: 1 | G100: Community singing | H100: Pilot, pragmatic randomised controlled trial | I100: UK: East Kent | J100: 258 | K100: 6 months post-baseline | L100: Usual care | M100: 6 | N100: Small pilot study with relatively short time horizon (6-months).
F101: 2 | G101: Help at home scheme | H101: Cross sectional survey & economic model | I101: UK: Shropshire | J101: 856 | K101: Retrospective questionnaire (prior 6 months of resource use) | L101: New service users who have just started using the scheme | M101: 6 | N101: The study was not randomised. The comparator was a relatively small group of new service users. QALYs were not derived directly from a HRQoL questionnaire. Outcomes were not measured at baseline.
F102: 3 | G102: Befriending | H102: Economic model | I102: UK | J102: N/A | K102: 1 year time horizon | L102: Usual care | M102: 12 | N102: The study is reported in very little detail as it is one of several interventions summarised in a larger report. It is not possible to appraise the validity of methods/results.
F103: 4 | G103: Dementia: Nursing homes | H103: Randomised controlled cluster trial | I103: UK: South London, North London, Buckinghamshire | J103: 847 | K103: 9 months post-baseline | L103: Treatment as Usual | M103: 9 | N103: Relatively short time horizon (9-months).
F104: 5 | G104: Hospital discharge support | H104: Single blinded, prospective RCT | I104: Netherlands | J104: 199 | K104: 2 years post-baseline | L104: Usual care | M104: 24 | N104: Results may not be generalisable to the UK as the study was conducted in the Netherlands. Outcomes reported as mean across study time horizon and not adjusted for baseline characteristics.
F105: 6 | G105: Social prescribing | H105: Uncontrolled before-after study | I105: UK: Rotherham | J105: 1607 | K105: 1 & 2 years post-baseline | L105: No comparator group, scores compared for individuals before and after receiving the intervention | M105: 24 | N105: Uncontrolled before and after study design. QALYs were not measured directly but derived based on scores on a well-being tool developed specifically for the Social Prescribing pilot study.
F106: 7 | G106: Interprofessional working (health coaching) | H106: Randomised controlled trial and cost-effectiveness analysis | I106: UK: Salford | J106: 1306 | K106: Multiple time points over 20 month time horizon | L106: Usual care | M106: 20 | N106: Results may not be generalisable to all regions of the UK as the study was conducted in a location with high levels of deprivation. Intervention benefits were not statistically significant for clinical or economic endpoints.
F107: 8 | G107: Self-management of COPD | H107: Pilot randomised controlled study and cost-effectiveness analysis | I107: UK | J107: 78 | K107: 2 and 6-months post baseline | L107: Usual care | M107: 6 | N107: The study was a small pilot RCT therefore results may not be generalisable in the wider population. Clinical benefits were not statistically significant possibly due to the small sample size.
F108: 9 | G108: Reablement | H108: A non-randomised comparative study | I108: UK | J108: 1015 | K108: 8 weeks and 12 months post intervention | L108: Usual care | M108: 12 | N108: The study was not randomised. Impact of intervention on costs and QALYs was not statistically significant.
F109: 10 | G109: =IF($L$85=TRUE,H193,"") ->  | H109: =IF($L$85=TRUE,H215,"Please complete user intervention form") -> Please complete user intervention form | I109: =IF($L$85=TRUE,H216,"Please complete user intervention form") -> Please complete user intervention form | J109: =IF($L$85=TRUE,H217,"Please complete user intervention form") -> Please complete user intervention form | K109: =IF($L$85=TRUE,H218,"Please complete user intervention form") -> Please complete user intervention form | L109: =IF($L$85=TRUE,H219,"Please complete user intervention form") -> Please complete user intervention form | M109: =IF($L$85=TRUE,H220,"Please complete user intervention form") -> Please complete user intervention form | N109: =IF($L$85=TRUE,G223,"Please complete user intervention form") -> Please complete user intervention form
G186: USER INTERVENTION FORM
G193: Name of Intervention:
G195: Target population:
G200: Study underpinning analysis:
G206: Intervention as described in study:
G214: Study characteristics:
G215: Type of study
G216: Country/Region
G217: Sample size
G218: Time at which outcomes are reported
G219: Comparator
G220: Time horizon (months)
G222: Study limitations:

Sheet 2b) Population
G12: Select intervention:
G14: Select population source:
G17: LEVEL OF ANALYSIS
G19: Select National, LA, CCG or STP level analysis:
H21: Select Nation:
H23: Select Local Authority:
H25: Select CCG:
H27: Select STP:
G31: ELIGIBILITY
G33: Study population: | I33: =CHOOSE('2a) Interventions'!G85,'2a) Interventions'!H88,'2a) Interventions'!H89,'2a) Interventions'!H90,'2a) Interventions'!H91,'2a) Interventions'!H92,'2a) Interventions'!H93,'2a) Interventions'!H94,'2a) Interventions'!H95,'2a) Interventions'!H96,'2a) Interventions'!H97) -> People with long term health conditions. Typically an older population (87% were 60+).
G37: Select age bracket eligible for intervention:
G39: Select method to establish eligible population:
H41: % of population eligible for intervention: | K41: =CHOOSE(IntChoice,'2b) Population'!J251,'2b) Population'!J252,'2b) Population'!J253,'2b) Population'!J254,'2b) Population'!J255,'2b) Population'!J256,'2b) Population'!J257,'2b) Population'!J258,'2b) Population'!J259,'2b) Population'!J260) -> 0.05
H43: Click to view data sources and assumptions:
H45: Enter % eligible for intervention: | K45: 0.1
G49: UPTAKE
G51: Enter % uptake of intervention in eligible population: | K51: 0.08
G53: Enter proportion of eligible, willing population selected for final analysis | K53: 1
G58: POPULATION VALUES
G60: Estimated population (total size): | J60: =IF(G266=1,VLOOKUP(B273,A276:D282,IF(J266=1,3,4)),IF(G266=2,VLOOKUP(G273,F276:I657,IF(J266=1,3,4)),IF(G266=3,VLOOKUP(M273,L276:O470,IF(J266=1,3,4)),IF(G266=4,VLOOKUP(R273,Q276:T319,IF(J266=1,3,4)))))) -> 175537
G62: User-defined intervention population:
G64: Total population included in analysis: | J64: =IF(D266=2,J62,IF(AND(D266=1,I266=1),J60*K53*K51*K41,IF(AND(D266=1,I266=2),J60*K53*K51*K45))) -> 702.148
H188: Selected intervention:
H190: Summary of study population:
H191: =CHOOSE(IntChoice,I236,I237,I238,I239,I240,I241,I242,I243,I244,I245) -> People with long term health conditions. Typically an older population (87% were 60+).
H195: Summary of methods used to estimate the eligible population:
H196: =CHOOSE(IntChoice,J236,J237,J238,J239,J240,J241,J242,J243,J244,J245) -> Study eligibility is established using a risk stratification tool to identify the 5% most intensive service users. Therefore eligibility is assumed to be consistent across level and age of analysis (i.e. equal to 5% of the total population).
H202: Data sources used to estimate the eligible population:
H203: =CHOOSE(IntChoice,L236,L237,L238,L239,L240,L241,L242,L243,L244,L245) -> None required.
H209: Summary of data availability for eligible population by level of analysis:
H210: Level | I210: Data available | J210: Eligible % uses
H211: National | I211: =VLOOKUP(IntChoice,$N$236:$W$245,3) -> Yes | J211: =IF(I211="Yes","N/A",VLOOKUP(IntChoice,$N$236:$W$245,7)) -> N/A
H212: Local Authority | I212: =VLOOKUP(IntChoice,$N$236:$W$245,4) -> Yes | J212: =IF(I212="Yes","N/A",VLOOKUP(IntChoice,$N$236:$W$245,8)) -> N/A
H213: CCG | I213: =VLOOKUP(IntChoice,$N$236:$W$245,5) -> Yes | J213: =IF(I213="Yes","N/A",VLOOKUP(IntChoice,$N$236:$W$245,9)) -> N/A
H214: STP | I214: =VLOOKUP(IntChoice,$N$236:$W$245,6) -> Yes | J214: =IF(I214="Yes","N/A",VLOOKUP(IntChoice,$N$236:$W$245,10)) -> N/A
H216: Summary of data availability for eligible population by age:
H217: Level | I217: Age
H218: National | I218: =VLOOKUP(IntChoice,$N$235:$AA$245,11,FALSE) -> 65+ & 80+ data available
H219: Local Authority | I219: =VLOOKUP(IntChoice,$N$235:$AA$245,12,FALSE) -> 65+ & 80+ data available
H220: CCG | I220: =VLOOKUP(IntChoice,$N$235:$AA$245,13,FALSE) -> 65+ & 80+ data available
H221: STP | I221: =VLOOKUP(IntChoice,$N$235:$AA$245,14,FALSE) -> 65+ & 80+ data available
P234: Data Available | T234: Eligible Sources | X234: Age
H235: Intervention | I235: Target population | J235: Summary of methods | L235: Data Sources | O235: Intervention | P235: National | Q235: LA | R235: CCG | S235: STP | T235: National | U235: LA | V235: CCG | W235: STP | X235: National | Y235: LA | Z235: CCG | AA235: STP
G236: 1 | H236: ='2a) Interventions'!G88 -> Community singing | I236: ='2a) Interventions'!H88 -> All those expressing an interest and aged 60 or over. | J236: No further methods required as 100% of the general population is eligible for this intervention. | L236: No additional sources required. | N236: 1 | O236: ='2a) Interventions'!G100 -> Community singing | P236: Yes | Q236: Yes | R236: Yes | S236: Yes | T236: N/A | U236: N/A | V236: N/A | W236: N/A | X236: 65+ & 80+ data available | Y236: 65+ & 80+ data available | Z236: 65+ & 80+ data available | AA236: 65+ & 80+ data available
G237: 2 | H237: ='2a) Interventions'!G89 -> Help at home scheme | I237: ='2a) Interventions'!H89 -> People age 55 or over requiring help with day to day activities in their own homes. | J237: Uses study by Wittenberg et al. (2018) to estimate % who require help performing at least one Activity of Daily Living (ADL) or Instrumental Activity of Daily Living (IADL) for 65+. Age adjustments are made by multiplying by relative risk in 80+ group using Health Survey for England Data. | L237: Wittenberg et al. (2018). Projections of demand and expenditure on adult social care 2015 to 2040. Health Survey England 2016: Social care for older adults. Health Survey England 2016: Social care for older adults. https://digital.nhs.uk/data-and-information/publications/statistical/health-survey-for-england/health-survey-for-england-2016 | N237: 2 | O237: ='2a) Interventions'!G101 -> Help at home scheme | P237: Yes | Q237: No | R237: No | S237: No | T237: N/A | U237: National data | V237: National data | W237: National data | X237: Derived using relative risks from national data | Y237: Derived using relative risks from national data | Z237: Derived using relative risks from national data | AA237: Derived using relative risks from national data
G238: 3 | H238: ='2a) Interventions'!G90 -> Befriending | I238: ='2a) Interventions'!H90 -> People aged over 50 who are lonely/isolated. | J238: GP patient questionnaire item identifies % of individauls reporting to feel socially isolated in local populations. Age adjustments are made by multiplying by the relative risk of social isolation in 65+/80+ age groups vs. isolation across all age ranges using national data. | L238: GP Patient Survey (2019). https://www.gp-patient.co.uk/. Question 32 "Have you experienced any of the following over the past 12 months?"; Answer 3: "Feeling isolated from others" | N238: 3 | O238: ='2a) Interventions'!G102 -> Befriending | P238: Yes | Q238: No | R238: Yes | S238: Yes | T238: N/A | U238: Regional data | V238: N/A | W238: N/A | X238: Derived using relative risks from national data. | Y238: Derived using relative risks from national data. | Z238: Derived using relative risks from national data. | AA238: Derived using relative risks from national data.
G239: 4 | H239: ='2a) Interventions'!G91 -> Dementia: nursing homes | I239: ='2a) Interventions'!H91 -> People with dementia who are currently living in a nursing home. | J239: Identifies the prevalence of dementia in the selected population and multiplies by the proportion of dementia patients who reside in nursing homes. Note all nursing home rates are based on UK averages. | L239: Prevalence of dementia (National, CCG and STP): Dementia UK update (2014) Appendix A, Alzheimer's Society. Rates of dementia in nursing homes: Dementia UK update (2014), Alzheimer's Society. | N239: 4 | O239: ='2a) Interventions'!G103 -> Dementia: Nursing homes | P239: Yes | Q239: No | R239: Yes | S239: Yes | T239: N/A | U239: National data | V239: N/A | W239: N/A | X239: 65+ & 80+ data available | Y239: Assumes national rates | Z239: 65+ & 80+ data available | AA239: 65+ & 80+ data available
G240: 5 | H240: ='2a) Interventions'!G92 -> Hospital discharge support | I240: ='2a) Interventions'!H92 -> People with (stage 2 or 3) COPD with impaired exercise capacity. | J240: Identifies the prevalence of COPD in the local population and multiplies by the % of COPD cases with moderate or worse symptoms of breathlessness (dyspnea scale >=3). Age adjustments are made by multiplying by the relative risk of COPD in 65+/80+ age groups vs. COPD across all age ranges using results from a UK population study. | L240: Prevalence of COPD (National, LA, CCG and STP) & prevalence of COPD with level >=3 dyspnea: NHS Digital online (2018): Quality and Outcomes Framework, Achievement, prevalence and exceptions data - 2017 -18 [PAS] [online]; Prevalence rates of COPD by age group: British Lung Foundation Chronic obstructive pulmonary disease statistics (2012) [online]. | N240: 5 | O240: ='2a) Interventions'!G104 -> Hospital discharge support | P240: Yes | Q240: No | R240: Yes | S240: Yes | T240: N/A | U240: Regional data | V240: N/A | W240: N/A | X240: Derived using relative risks from UK data. | Y240: Derived using relative risks from UK data. | Z240: Derived using relative risks from UK data. | AA240: Derived using relative risks from UK data.
G241: 6 | H241: ='2a) Interventions'!G93 -> Bundle of VCS services for people with LTCs | I241: ='2a) Interventions'!H93 -> People with long term health conditions. Typically an older population (87% were 60+). | J241: Study eligibility is established using a risk stratification tool to identify the 5% most intensive service users. Therefore eligibility is assumed to be consistent across level and age of analysis (i.e. equal to 5% of the total population). | L241: None required. | N241: 6 | O241: ='2a) Interventions'!G105 -> Social prescribing | P241: Yes | Q241: Yes | R241: Yes | S241: Yes | T241: N/A | U241: N/A | V241: N/A | W241: N/A | X241: 65+ & 80+ data available | Y241: 65+ & 80+ data available | Z241: 65+ & 80+ data available | AA241: 65+ & 80+ data available
G242: 7 | H242: ='2a) Interventions'!G94 -> Interprofessional working (health coaching) | I242: ='2a) Interventions'!H94 -> People aged 65 or over who have two or more existing long term conditions. | J242: Multimorbidity (2 or more health conditions) estimates for the UK obtained directly for 65+ and 80+ age groups from Kingston et al. | L242: Kingston, et al. (2018). Projections of multi-morbidity in the older population in England to 2035: estimates from the Population Ageing and Care Simulation (PACSim) model. Age and ageing, 47(3), 374-380. | N242: 7 | O242: ='2a) Interventions'!G106 -> Interprofessional working (health coaching) | P242: Yes | Q242: No | R242: No | S242: No | T242: N/A | U242: National data | V242: National data | W242: National data | X242: 65+ & 80+ data available | Y242: Assumes national rates | Z242: Assumes national rates | AA242: Assumes national rates
G243: 8 | H243: ='2a) Interventions'!G95 -> Self-management of COPD | I243: ='2a) Interventions'!H95 -> People with moderate to severe COPD (average age 69). | J243: Identifies the prevalence of COPD in the local population and multiplies by the % of COPD cases with moderate or worse symptoms of breathlessness (dyspnea scale >=3). Age adjustments are made by multiplying by the relative risk of COPD in 65+/80+ age groups vs. COPD across all age ranges using results from a UK population study. | L243: Prevalence of COPD (National, LA, CCG and STP) & prevalence of COPD with level >=3 dyspnea: NHS Digital online (2018): Quality and Outcomes Framework, Achievement, prevalence and exceptions data - 2017 -18 [PAS] [online]; Prevalence rates of COPD by age group: British Lung Foundation Chronic obstructive pulmonary disease statistics (2012) [online]. | N243: 8 | O243: ='2a) Interventions'!G107 -> Self-management of COPD | P243: Yes | Q243: No | R243: Yes | S243: Yes | T243: N/A | U243: Regional data | V243: N/A | W243: N/A | X243: Derived using relative risks from UK data. | Y243: Derived using relative risks from UK data. | Z243: Derived using relative risks from UK data. | AA243: Derived using relative risks from UK data.
G244: 9 | H244: ='2a) Interventions'!G96 -> Reablement | I244: ='2a) Interventions'!H96 -> Older people struggling to cope with day to day activities without relying on social care services. | J244: Eligibility for social services estimated as % who require help performing at least one Activity of Daily Living (ADL) or Instrumental Activity of Daily Living (IADL) for 65+ age group (Wittenberg et al.). Age adjustments are made by multiplying by relative risk in 80+ group using Health Survey for England Data. | L244: Wittenberg et al. (2018). Projections of demand and expenditure on adult social care 2015 to 2040. Health Survey England 2016: Social care for older adults. Health Survey England 2016: Social care for older adults. https://digital.nhs.uk/data-and-information/publications/statistical/health-survey-for-england/health-survey-for-england-2016 | N244: 9 | O244: ='2a) Interventions'!G108 -> Reablement | P244: Yes | Q244: No | R244: No | S244: No | T244: N/A | U244: National data | V244: National data | W244: National data | X244: Derived using relative risks from national data | Y244: Derived using relative risks from national data | Z244: Derived using relative risks from national data | AA244: Derived using relative risks from national data
G245: 10 | H245: ='2a) Interventions'!G97 -> User defined intervention | I245: N/A | J245: N/A | L245: N/A | N245: 10 | O245: User defined | P245: N/A | Q245: N/A | R245: N/A | S245: N/A | T245: N/A | U245: N/A | V245: N/A | W245: N/A | X245: N/A | Y245: N/A | Z245: N/A | AA245: N/A
H250: Intervention | J250: Eligible population
H251: ='2a) Interventions'!G88 -> Community singing | J251: 1
H252: ='2a) Interventions'!G89 -> Help at home scheme | J252: =CHOOSE(G266,J1626,J1627,J1628,J1629) -> 0.3752731168
H253: ='2a) Interventions'!G90 -> Befriending | J253: =CHOOSE(G266,J1273,J1274,J1275,J1276) -> 0.04270378334
H254: ='2a) Interventions'!G91 -> Dementia: nursing homes | J254: =CHOOSE(G266,J670,J671,J672,J673) -> 0.01104120961
H255: ='2a) Interventions'!G92 -> Hospital discharge support | J255: =CHOOSE(G266,J891,J892,J893,J894) -> 0.03203269342
H256: ='2a) Interventions'!G93 -> Bundle of VCS services for people with LTCs | I256: 1 | J256: 0.05
H257: ='2a) Interventions'!G94 -> Interprofessional working (health coaching) | J257: =CHOOSE(G266,J642,J643,J644,J645) -> 0.54
H258: ='2a) Interventions'!G95 -> Self-management of COPD | J258: =CHOOSE(G266,J891,J892,J893,J894) -> 0.03203269342
H259: ='2a) Interventions'!G96 -> Reablement | J259: =CHOOSE(G266,J1626,J1627,J1628,J1629) -> 0.3752731168
H260: ='2a) Interventions'!G97 -> User defined intervention | I260: 1 | J260: Select user defined
A264: Drop Down Selections:
D265: Population selector | G265: Level of Analysis | I265: Eligible selector | J265: Age selector
D266: 1 | G266: 4 | I266: 1 | J266: 1
D267: Model calculated | G267: National | I267: Model calculated | J267: 65+
D268: User defined | G268: Local Authority | I268: User defined | J268: 80+
G269: CCG
G270: STP | I270: Final Model value eligibility
I271: 1
A272: Population Sources for Level of analysis (National/LA/CCG/STP)
B273: 1 | C273: =VLOOKUP(B273,A276:B279,2) -> England | G273: 317 | H273: =VLOOKUP(G273,F276:G657,2) -> York | M273: 25 | N273: =VLOOKUP(M273,L276:M470,2) -> NHS Cambridgeshire and Peterborough | R273: 43 | S273: =VLOOKUP(R273,Q276:R319,2) -> The Black Country & West Birmingham
B274: Nation
C275: 65+ | D275: 80+ | G275: Local authority | H275: 65+ | I275: 80+ | M275: CCG | N275: 65+ | O275: 80+ | R275: STP | S275: 65+ | T275: 80+
A276: 1 | B276: England | C276: 10179253 | D276: 2768734 | F276: 1 | G276: Adur | H276: 14970 | I276: 4317 | L276: 1 | M276: NHS Airedale, Wharfedale and Craven | N276: 35409 | O276: 10097 | Q276: 1 | R276: Bath, NE Somerset, Swindon and Wiltshire | S276: 174727 | T276: 47814 | AB276: 1 | AC276: Bath, NE Somerset, Swindon and Wiltshire
F277: 2 | G277: Allerdale | H277: 23691 | I277: 6230 | L277: 2 | M277: NHS Ashford | N277: 24576 | O277: 6272 | Q277: 2 | R277: Bedfordshire, Luton and Milton Keynes | S277: 143040 | T277: 37446 | AB277: 2 | AC277: Birmingham and Solihull
F278: 3 | G278: Amber Valley | H278: 27977 | I278: 6797 | L278: 3 | M278: NHS Barking and Dagenham | N278: 19796 | O278: 5875 | Q278: 3 | R278: Birmingham and Solihull | S278: 175537 | T278: 51327 | AB278: 3 | AC278: Bristol, North Somerset and South Gloucestershire
F279: 4 | G279: Arun | H279: 45866 | I279: 13503 | L279: 4 | M279: NHS Barnet | N279: 55055 | O279: 16238 | Q279: 4 | R279: Bristol, North Somerset and South Gloucestershire | S279: 162251 | T279: 45758 | AB279: 4 | AC279: Buckinghamshire, Oxfordshire and Berkshire West
F280: 5 | G280: Ashfield | H280: 24375 | I280: 5854 | L280: 5 | M280: NHS Barnsley | N280: 46532 | O280: 11682 | Q280: 5 | R280: Buckinghamshire, Oxfordshire and Berkshire West | S280: 162251 | T280: 45758 | AB280: 5 | AC280: Cambridgeshire and Peterborough
F281: 6 | G281: Ashford | H281: 24971 | I281: 6396 | L281: 6 | M281: NHS Basildon and Brentwood | N281: 47366 | O281: 13681 | Q281: 6 | R281: Cambridgeshire and Peterborough | S281: 157562 | T281: 42719 | AB281: 6 | AC281: Cheshire and Merseyside
F282: 7 | G282: Aylesbury Vale | H282: 33405 | I282: 8665 | L282: 7 | M282: NHS Bassetlaw | N282: 24935 | O282: 6208 | Q282: 7 | R282: Cheshire and Merseyside | S282: 483463 | T282: 129717 | AB282: 7 | AC282: Cornwall and the Isles of Scilly
F283: 8 | G283: Babergh | H283: 23756 | I283: 6398 | L283: 8 | M283: NHS Bath and North East Somerset | N283: 35659 | O283: 10249 | Q283: 8 | R283: Cornwall and the Isles of Scilly | S283: 137951 | T283: 35365 | AB283: 8 | AC283: Coventry and Warwickshire
F284: 9 | G284: Barking and Dagenham | H284: 19755 | I284: 5823 | L284: 9 | M284: NHS Bedfordshire | N284: 79330 | O284: 20932 | Q284: 9 | R284: Coventry and Warwickshire | S284: 166315 | T284: 45316 | AB284: 9 | AC284: Derbyshire (Joined Up Care)
F285: 10 | G285: Barnet | H285: 56221 | I285: 16519 | L285: 10 | M285: NHS Berkshire West | N285: 78019 | O285: 20927 | Q285: 10 | R285: Derbyshire (Joined Up Care) | S285: 204103 | T285: 53198 | AB285: 10 | AC285: Devon
F286: 11 | G286: Barnsley | H286: 47287 | I286: 11891 | L286: 11 | M286: NHS Bexley | N286: 40622 | O286: 12279 | Q286: 11 | R286: Devon | S286: 279889 | T286: 77322 | AB286: 11 | AC286: Dorset
F287: 12 | G287: Barrow-in-Furness | H287: 14454 | I287: 3527 | L287: 12 | M287: NHS Birmingham and Solihull | N287: 175537 | O287: 51327 | Q287: 12 | R287: Dorset | S287: 190793 | T287: 56232 | AB287: 12 | AC287: Durham, Darlington, Teesside, Hambleton, Richmondshire and Whitby
F288: 13 | G288: Basildon | H288: 31922 | I288: 8853 | L288: 13 | M288: NHS Blackburn with Darwen | N288: 21291 | O288: 5129 | Q288: 13 | R288: Durham, Darlington, Teesside, Hambleton, Richmondshire and Whitby | S288: 190793 | T288: 56232 | AB288: 13 | AC288: Frimley Health
F289: 14 | G289: Basingstoke and Deane | H289: 30241 | I289: 7611 | L289: 14 | M289: NHS Blackpool | N289: 28544 | O289: 7628 | Q289: 14 | R289: East London | S289: 198823 | T289: 55627 | AB289: 14 | AC289: Gloucestershire
F290: 15 | G290: Bassetlaw | H290: 25512 | I290: 6399 | L290: 15 | M290: NHS Bolton | N290: 48502 | O290: 11718 | Q290: 15 | R290: Frimley Health | S290: 115823 | T290: 32085 | AB290: 15 | AC290: Greater Manchester
F291: 16 | G291: Bath and North East Somerset | H291: 36260 | I291: 10587 | L291: 16 | M291: NHS Bradford City | N291: 5812 | O291: 1531 | Q291: 16 | R291: Gloucestershire | S291: 132212 | T291: 35667 | AB291: 16 | AC291: Hampshire and the Isle of Wight
F292: 17 | G292: Bedford | H292: 30229 | I292: 8625 | L292: 17 | M292: NHS Bradford Districts | N292: 50264 | O292: 13654 | Q292: 17 | R292: Greater Manchester | S292: 447218 | T292: 113822 | AB292: 17 | AC292: Herefordshire and Worcestershire
F293: 18 | G293: Bexley | H293: 40764 | I293: 12517 | L293: 18 | M293: NHS Brent | N293: 38727 | O293: 10642 | Q293: 18 | R293: Hampshire and the Isle of Wight | S293: 364675 | T293: 102155 | AB293: 18 | AC293: Hertfordshire and West Essex
F294: 19 | G294: Birmingham | H294: 147944 | I294: 43429 | L294: 19 | M294: NHS Brighton and Hove | N294: 38330 | O294: 11303 | Q294: 19 | R294: Herefordshire and Worcestershire | S294: 176391 | T294: 47229 | AB294: 19 | AC294: Humber, Coast and Vale
F295: 20 | G295: Blaby | H295: 20390 | I295: 5467 | L295: 20 | M295: NHS Bristol, North Somerset and South Gloucestershire | N295: 162251 | O295: 45758 | Q295: 20 | R295: Hertfordshire and West Essex | S295: 251011 | T295: 74312 | AB295: 20 | AC295: Kent and Medway
F296: 21 | G296: Blackburn with Darwen | H296: 21543 | I296: 5202 | L296: 21 | M296: NHS Bromley | N296: 57626 | O296: 17062 | Q296: 21 | R296: Humber, Coast and Vale | S296: 483463 | T296: 129717 | AB296: 21 | AC296: Lancashire and South Cumbria
F297: 22 | G297: Blackpool | H297: 28402 | I297: 7595 | L297: 22 | M297: NHS Buckinghamshire | N297: 100000 | O297: 28354 | Q297: 22 | R297: Kent and Medway | S297: 287237 | T297: 75847 | AB297: 22 | AC297: Leicester, Leicestershire and Rutland
F298: 23 | G298: Bolsover | H298: 15878 | I298: 3831 | L298: 23 | M298: NHS Bury | N298: 34158 | O298: 8601 | Q298: 23 | R298: Lancashire and South Cumbria | S298: 341854 | T298: 88672 | AB298: 23 | AC298: Lincolnshire
F299: 24 | G299: Bolton | H299: 49120 | I299: 12031 | L299: 24 | M299: NHS Calderdale | N299: 38345 | O299: 9581 | Q299: 24 | R299: Leicester, Leicestershire and Rutland | S299: 190488 | T299: 50424 | AB299: 24 | AC299: Mid and South Essex
F300: 25 | G300: Boston | H300: 14433 | I300: 3778 | L300: 25 | M300: NHS Cambridgeshire and Peterborough | N300: 157562 | O300: 42719 | Q300: 25 | R300: Lincolnshire | S300: 173972 | T300: 44503 | AB300: 25 | AC300: Bedfordshire, Luton and Milton Keynes
F301: 26 | G301: Bournemouth, Christchurch and Poole | H301: 85245 | I301: 26299 | L301: 26 | M301: NHS Camden | N301: 30098 | O301: 8003 | Q301: 26 | R301: Mid and South Essex | S301: 227017 | T301: 61478 | AB301: 26 | AC301: Norfolk and Waveney
F302: 27 | G302: Bracknell Forest | H302: 17592 | I302: 4612 | L302: 27 | M302: NHS Cannock Chase | N302: 26496 | O302: 6451 | Q302: 27 | R302: Norfolk and Waveney | S302: 143040 | T302: 37446 | AB302: 27 | AC302: North London
F303: 28 | G303: Bradford | H303: 79463 | I303: 21810 | L303: 28 | M303: NHS Canterbury and Coastal | N303: 44591 | O303: 12234 | Q303: 28 | R303: North Cumbria | S303: 73130 | T303: 19213 | AB303: 28 | AC303: East London
F304: 29 | G304: Braintree | H304: 30475 | I304: 7869 | L304: 29 | M304: NHS Castle Point and Rochford | N304: 42230 | O304: 11019 | Q304: 29 | R304: North London | S304: 175711 | T304: 48424 | AB304: 29 | AC304: North West London
F305: 30 | G305: Breckland | H305: 34484 | I305: 9531 | L305: 30 | M305: NHS Central London (Westminster) | N305: 23427 | O305: 6548 | Q305: 30 | R305: North West London | S305: 264876 | T305: 72112 | AB305: 30 | AC305: Northamptonshire
F306: 31 | G306: Brent | H306: 39992 | I306: 10970 | L306: 31 | M306: NHS Chorley and South Ribble | N306: 33856 | O306: 7809 | Q306: 31 | R306: Northamptonshire | S306: 127479 | T306: 31280 | AB306: 31 | AC306: Northumberland, Tyne and Wear and North Durham
F307: 32 | G307: Brentwood | H307: 15561 | I307: 4976 | L307: 32 | M307: NHS City and Hackney | N307: 21876 | O307: 5564 | Q307: 32 | R307: Northumberland, Tyne and Wear and North Durham | S307: 127479 | T307: 31280 | AB307: 32 | AC307: Nottingham and Nottinghamshire
F308: 33 | G308: Brighton and Hove | H308: 38504 | I308: 11333 | L308: 33 | M308: NHS Coastal West Sussex | N308: 131391 | O308: 39047 | Q308: 33 | R308: Nottingham and Nottinghamshire | S308: 180220 | T308: 47725 | AB308: 33 | AC308: Shropshire and Telford and Wrekin
F309: 34 | G309: Bristol, City of | H309: 59950 | I309: 17284 | L309: 34 | M309: NHS Corby | N309: 9750 | O309: 2299 | Q309: 34 | R309: Shropshire and Telford and Wrekin | S309: 105647 | T309: 26909 | AB309: 34 | AC309: Somerset
F310: 35 | G310: Broadland | H310: 33204 | I310: 9397 | L310: 35 | M310: NHS Coventry and Rugby | N310: 69841 | O310: 19496 | Q310: 35 | R310: Somerset | S310: 134127 | T310: 36796 | AB310: 35 | AC310: South East London
F311: 36 | G311: Bromley | H311: 57786 | I311: 17247 | L311: 36 | M311: NHS Crawley | N311: 14870 | O311: 4413 | Q311: 36 | R311: South East London | S311: 207462 | T311: 58546 | AB311: 36 | AC311: South West London
F312: 37 | G312: Bromsgrove | H312: 22168 | I312: 6450 | L312: 37 | M312: NHS Croydon | N312: 51384 | O312: 14332 | Q312: 37 | R312: South West London | S312: 192289 | T312: 53182 | AB312: 37 | AC312: South Yorkshire and Bassetlaw
F313: 38 | G313: Broxbourne | H313: 17305 | I313: 5042 | L313: 38 | M313: NHS Darlington | N313: 21284 | O313: 5872 | Q313: 38 | R313: South Yorkshire and Bassetlaw | S313: 273430 | T313: 72190 | AB313: 38 | AC313: Staffordshire and Stoke on Trent
F314: 39 | G314: Broxtowe | H314: 23807 | I314: 6293 | L314: 39 | M314: NHS Dartford, Gravesham and Swanley | N314: 45046 | O314: 12623 | Q314: 39 | R314: Staffordshire and Stoke on Trent | S314: 229076 | T314: 57516 | AB314: 39 | AC314: Suffolk and North East Essex
F315: 40 | G315: Burnley | H315: 16422 | I315: 4084 | L315: 40 | M315: NHS Doncaster | N315: 58002 | O315: 15242 | Q315: 40 | R315: Suffolk and North East Essex | S315: 217111 | T315: 59268 | AB315: 40 | AC315: Surrey Heartlands
F316: 41 | G316: Bury | H316: 34658 | I316: 8800 | L316: 41 | M316: NHS Dorset | N316: 190793 | O316: 56232 | Q316: 41 | R316: Surrey Heartlands | S316: 160136 | T316: 48500 | AB316: 41 | AC316: Sussex and East Surrey
F317: 42 | G317: Calderdale | H317: 38892 | I317: 9698 | L317: 42 | M317: NHS Dudley | N317: 64683 | O317: 17464 | Q317: 42 | R317: Sussex and East Surrey | S317: 404928 | T317: 118801 | AB317: 42 | AC317: The Black Country & West Birmingham
F318: 43 | G318: Cambridge | H318: 16122 | I318: 5074 | L318: 43 | M318: NHS Durham Dales, Easington and Sedgefield | N318: 57565 | O318: 14267 | Q318: 43 | R318: The Black Country & West Birmingham | S318: 175537 | T318: 51327 | AB318: 43 | AC318: West Yorkshire & Harrogate
F319: 44 | G319: Camden | H319: 31168 | I319: 8328 | L319: 44 | M319: NHS Ealing | N319: 42527 | O319: 11605 | Q319: 44 | R319: West Yorkshire & Harrogate | S319: 427856 | T319: 114178 | AB319: 44 | AC319: North Cumbria
F320: 45 | G320: Cannock Chase | H320: 18944 | I320: 4718 | L320: 45 | M320: NHS East and North Hertfordshire | N320: 96452 | O320: 28594
F321: 46 | G321: Canterbury | H321: 33574 | I321: 9442 | L321: 46 | M321: NHS East Berkshire | N321: 60726 | O321: 16868
F322: 47 | G322: Carlisle | H322: 23363 | I322: 6353 | L322: 47 | M322: NHS East Lancashire | N322: 71670 | O322: 17868
F323: 48 | G323: Castle Point | H323: 22734 | I323: 5821 | L323: 48 | M323: NHS East Leicestershire and Rutland | N323: 71648 | O323: 19632
F324: 49 | G324: Central Bedfordshire | H324: 50602 | I324: 12883 | L324: 49 | M324: NHS East Riding of Yorkshire | N324: 80510 | O324: 20714
F325: 50 | G325: Charnwood | H325: 33041 | I325: 8728 | L325: 50 | M325: NHS East Staffordshire | N325: 24522 | O325: 6393
F326: 51 | G326: Chelmsford | H326: 33879 | I326: 9503 | L326: 51 | M326: NHS East Surrey | N326: 33277 | O326: 9613
F327: 52 | G327: Cheltenham | H327: 22519 | I327: 6780 | L327: 52 | M327: NHS Eastbourne, Hailsham and Seaford | N327: 51711 | O327: 16209
F328: 53 | G328: Cherwell | H328: 26959 | I328: 7396 | L328: 53 | M328: NHS Eastern Cheshire | N328: 47151 | O328: 13409
F329: 54 | G329: Cheshire East | H329: 86688 | I329: 23737 | L329: 54 | M329: NHS Enfield | N329: 43259 | O329: 12238
F330: 55 | G330: Cheshire West and Chester | H330: 72945 | I330: 19408 | L330: 55 | M330: NHS Erewash | N330: 18513 | O330: 5062
F331: 56 | G331: Chesterfield | H331: 21921 | I331: 5757 | L331: 56 | M331: NHS Fareham and Gosport | N331: 43643 | O331: 12205
F332: 57 | G332: Chichester | H332: 32532 | I332: 9755 | L332: 57 | M332: NHS Fylde and Wyre | N332: 51629 | O332: 14534
F333: 58 | G333: Chiltern | H333: 20517 | I333: 6473 | L333: 58 | M333: NHS Gloucestershire | N333: 132212 | O333: 35667
F334: 59 | G334: Chorley | H334: 23015 | I334: 5248 | L334: 59 | M334: NHS Great Yarmouth and Waveney | N334: 55071 | O334: 15132
F335: 60 | G335: City of London | H335: 1564 | I335: 398 | L335: 60 | M335: NHS Greater Huddersfield | N335: 44127 | O335: 11126
F336: 61 | G336: Colchester | H336: 33169 | I336: 8658 | L336: 61 | M336: NHS Greater Preston | N336: 34751 | O336: 9378
F337: 62 | G337: Copeland | H337: 15289 | I337: 3894 | L337: 62 | M337: NHS Greenwich | N337: 29365 | O337: 7740
F338: 63 | G338: Corby | H338: 10020 | I338: 2365 | L338: 63 | M338: NHS Guildford and Waverley | N338: 38738 | O338: 11901
F339: 64 | G339: Cornwall | H339: 139632 | I339: 35569 | L339: 64 | M339: NHS Halton | N339: 22775 | O339: 5205
F340: 65 | G340: Cotswold | H340: 22760 | I340: 6236 | L340: 65 | M340: NHS Hambleton, Richmondshire and Whitby | N340: 37394 | O340: 9565
F341: 66 | G341: County Durham | H341: 108590 | I341: 26958 | L341: 66 | M341: NHS Hammersmith and Fulham | N341: 19334 | O341: 4858
F342: 67 | G342: Coventry | H342: 49968 | I342: 14086 | L342: 67 | M342: NHS Hardwick | N342: 23531 | O342: 5678
F343: 68 | G343: Craven | H343: 15199 | I343: 4168 | L343: 68 | M343: NHS Haringey | N343: 26628 | O343: 6658
F344: 69 | G344: Crawley | H344: 15048 | I344: 4376 | L344: 69 | M344: NHS Harrogate and Rural District | N344: 36531 | O344: 10585
F345: 70 | G345: Croydon | H345: 52154 | I345: 14605 | L345: 70 | M345: NHS Harrow | N345: 38417 | O345: 11194
F346: 71 | G346: Dacorum | H346: 26479 | I346: 7697 | L346: 71 | M346: NHS Hartlepool and Stockton-on-Tees | N346: 52719 | O346: 14002
F347: 72 | G347: Darlington | H347: 21588 | I347: 5951 | L347: 72 | M347: NHS Hastings and Rother | N347: 48106 | O347: 13599
F348: 73 | G348: Dartford | H348: 15651 | I348: 4503 | L348: 73 | M348: NHS Havering | N348: 46418 | O348: 14378
F349: 74 | G349: Daventry | H349: 17270 | I349: 4055 | L349: 74 | M349: NHS Herefordshire | N349: 45758 | O349: 12450
F350: 75 | G350: Derby | H350: 41876 | I350: 12471 | L350: 75 | M350: NHS Herts Valleys | N350: 98843 | O350: 29601
F351: 76 | G351: Derbyshire Dales | H351: 19442 | I351: 5053 | L351: 76 | M351: NHS Heywood, Middleton and Rochdale | N351: 35427 | O351: 8923
F352: 77 | G352: Doncaster | H352: 58810 | I352: 15357 | L352: 77 | M352: NHS High Weald Lewes Havens | N352: 40653 | O352: 11151
F353: 78 | G353: Dorset | H353: 107816 | I353: 30335 | L353: 78 | M353: NHS Hillingdon | N353: 40087 | O353: 11673
F354: 79 | G354: Dover | H354: 27222 | I354: 7056 | L354: 79 | M354: NHS Horsham and Mid Sussex | N354: 46590 | O354: 13466
F355: 80 | G355: Dudley | H355: 65175 | I355: 17869 | L355: 80 | M355: NHS Hounslow | N355: 31770 | O355: 8074
F356: 81 | G356: Ealing | H356: 43741 | I356: 12060 | L356: 81 | M356: NHS Hull | N356: 38690 | O356: 10134
F357: 82 | G357: East Cambridgeshire | H357: 17842 | I357: 4777 | L357: 82 | M357: NHS Ipswich and East Suffolk | N357: 91505 | O357: 25287
F358: 83 | G358: East Devon | H358: 43489 | I358: 12988 | L358: 83 | M358: NHS Isle of Wight | N358: 38533 | O358: 10208
F359: 84 | G359: East Hampshire | H359: 27999 | I359: 7888 | L359: 84 | M359: NHS Islington | N359: 20671 | O359: 5287
F360: 85 | G360: East Hertfordshire | H360: 26528 | I360: 7423 | L360: 85 | M360: NHS Kernow | N360: 137951 | O360: 35365
F361: 86 | G361: East Lindsey | H361: 41889 | I361: 10091 | L361: 86 | M361: NHS Kingston | N361: 23745 | O361: 6778
F362: 87 | G362: East Northamptonshire | H362: 19554 | I362: 4846 | L362: 87 | M362: NHS Knowsley | N362: 25209 | O362: 7012
F363: 88 | G363: East Riding of Yorkshire | H363: 87485 | I363: 22725 | L363: 88 | M363: NHS Lambeth | N363: 26112 | O363: 7024
F364: 89 | G364: East Staffordshire | H364: 22681 | I364: 5950 | L364: 89 | M364: NHS Leeds | N364: 121601 | O364: 33575
F365: 90 | G365: East Suffolk | H365: 67323 | I365: 19010 | L365: 90 | M365: NHS Leicester City | N365: 41536 | O365: 11576
F366: 91 | G366: Eastbourne | H366: 25720 | I366: 8372 | L366: 91 | M366: NHS Lewisham | N366: 28088 | O366: 7779
F367: 92 | G367: Eastleigh | H367: 25677 | I367: 7135 | L367: 92 | M367: NHS Lincolnshire East | N367: 62640 | O367: 15578
F368: 93 | G368: Eden | H368: 14048 | I368: 3687 | L368: 93 | M368: NHS Lincolnshire West | N368: 48262 | O368: 12578
F369: 94 | G369: Elmbridge | H369: 24985 | I369: 7796 | L369: 94 | M369: NHS Liverpool | N369: 71793 | O369: 19438
F370: 95 | G370: Enfield | H370: 43903 | I370: 12512 | L370: 95 | M370: NHS Luton | N370: 26419 | O370: 7777
F371: 96 | G371: Epping Forest | H371: 25733 | I371: 7535 | L371: 96 | M371: NHS Manchester | N371: 50614 | O371: 13321
F372: 97 | G372: Epsom and Ewell | H372: 14652 | I372: 4181 | L372: 97 | M372: NHS Mansfield and Ashfield | N372: 38015 | O372: 9459
F373: 98 | G373: Erewash | H373: 23387 | I373: 6507 | L373: 98 | M373: NHS Medway | N373: 43696 | O373: 10642
F374: 99 | G374: Exeter | H374: 20766 | I374: 6244 | L374: 99 | M374: NHS Merton | N374: 25639 | O374: 7102
F375: 100 | G375: Fareham | H375: 27214 | I375: 7810 | L375: 100 | M375: NHS Mid Essex | N375: 79152 | O375: 20877
F376: 101 | G376: Fenland | H376: 23008 | I376: 6324 | L376: 101 | M376: NHS Milton Keynes | N376: 37291 | O376: 8737
F377: 102 | G377: Folkestone and Hythe | H377: 27530 | I377: 7264 | L377: 102 | M377: NHS Morecambe Bay | N377: 75442 | O377: 19909
F378: 103 | G378: Forest of Dean | H378: 21034 | I378: 5122 | L378: 103 | M378: NHS Nene | N378: 117729 | O378: 28981
F379: 104 | G379: Fylde | H379: 21724 | I379: 6207 | L379: 104 | M379: NHS Newark and Sherwood | N379: 26597 | O379: 6688
F380: 105 | G380: Gateshead | H380: 39257 | I380: 10949 | L380: 105 | M380: NHS Newcastle Gateshead | N380: 81820 | O380: 23008
F381: 106 | G381: Gedling | H381: 24585 | I381: 6576 | L381: 106 | M381: NHS Newham | N381: 25417 | O381: 6211
F382: 107 | G382: Gloucester | H382: 21570 | I382: 5859 | L382: 107 | M382: NHS North Cumbria | N382: 73130 | O382: 19213
F383: 108 | G383: Gosport | H383: 17064 | I383: 4626 | L383: 108 | M383: NHS North Derbyshire | N383: 63290 | O383: 16164
F384: 109 | G384: Gravesham | H384: 18450 | I384: 5237 | L384: 109 | M384: NHS North Durham | N384: 49314 | O384: 12133
F385: 110 | G385: Great Yarmouth | H385: 24020 | I385: 6300 | L385: 110 | M385: NHS North East Essex | N385: 75278 | O385: 20252
F386: 111 | G386: Greenwich | H386: 29780 | I386: 7785 | L386: 111 | M386: NHS North East Hampshire and Farnham | N386: 36688 | O386: 9956
F387: 112 | G387: Guildford | H387: 24482 | I387: 7086 | L387: 112 | M387: NHS North East Lincolnshire | N387: 31898 | O387: 8825
F388: 113 | G388: Hackney | H388: 21105 | I388: 5345 | L388: 113 | M388: NHS North Hampshire | N388: 40117 | O388: 10264
F389: 114 | G389: Halton | H389: 23256 | I389: 5282 | L389: 114 | M389: NHS North Kirklees | N389: 31647 | O389: 8024
F390: 115 | G390: Hambleton | H390: 23597 | I390: 6278 | L390: 115 | M390: NHS North Lincolnshire | N390: 35410 | O390: 9021
F391: 116 | G391: Hammersmith and Fulham | H391: 19853 | I391: 5037 | L391: 116 | M391: NHS North Norfolk | N391: 51095 | O391: 14052
F392: 117 | G392: Harborough | H392: 20173 | I392: 5308 | L392: 117 | M392: NHS North Staffordshire | N392: 47869 | O392: 12233
F393: 118 | G393: Haringey | H393: 27326 | I393: 6926 | L393: 118 | M393: NHS North Tyneside | N393: 40476 | O393: 10952
F394: 119 | G394: Harlow | H394: 13285 | I394: 3990 | L394: 119 | M394: NHS North West Surrey | N394: 61965 | O394: 18728
F395: 120 | G395: Harrogate | H395: 37120 | I395: 10919 | L395: 120 | M395: NHS Northern, Eastern and Western Devon | N395: 204802 | O395: 56693
F396: 121 | G396: Harrow | H396: 39202 | I396: 11418 | L396: 121 | M396: NHS Northumberland | N396: 76259 | O396: 19243
F397: 122 | G397: Hart | H397: 18900 | I397: 5119 | L397: 122 | M397: NHS Norwich | N397: 39426 | O397: 11830
F398: 123 | G398: Hartlepool | H398: 17959 | I398: 4944 | L398: 123 | M398: NHS Nottingham City | N398: 37788 | O398: 10775
F399: 124 | G399: Hastings | H399: 18367 | I399: 4867 | L399: 124 | M399: NHS Nottingham North and East | N399: 30086 | O399: 7792
... 1139 more rows

Sheet 2c) Intervention costs
G12: Selected intervention:
G15: Cost for implementation of the intervention:
G17: Resource | H17: Cost per person | I17: Population cost
G18: Facilitator training costs | H18: =K311 -> 0.6540905062 | I18: =H18*TotalPop -> 459.2683408
G19: Capital expenditure | H19: =K317 -> 0.3582916149 | I19: =H19*TotalPop -> 251.5737408
G20: Indirect costs | H20: =K323 -> 2.737776459 | I20: =H20*TotalPop -> 1922.324265
G21: Session costs | H21: =K330 -> 15.88703905 | I21: =H21*TotalPop -> 11155.05269
G22: Total | H22: =SUM(H18:H21) -> 19.63719763 | I22: =SUM(I18:I21) -> 13788.21904
G33: Cost for implementation of the intervention:
G35: Resource | H35: Cost per person | I35: Population Cost
G36: Practical home help | H36: =J343 -> 722.3905 | I36: =H36*TotalPop -> 507225.0448
G37: Befriending service | H37: =J344 -> 89.4729 | I37: =H37*TotalPop -> 62823.21779
G38: Welfare benefits advice | H38: =J345 -> 77.19 | I38: =H38*TotalPop -> 54198.80412
G39: Total | H39: =SUM(H36:H38) -> 889.0534 | I39: =H39*TotalPop -> 624247.0667
G51: Cost for implementation of the intervention:
G53: Resource | H53: Cost per person | I53: Population Cost
G54: Befriending service | H54: =J359 -> 99.84 | I54: =H54*TotalPop -> 70102.45632
G55: Total | H55: =SUM(H54:H54) -> 99.84 | I55: =H55*TotalPop -> 70102.45632
G69: Cost for implementation of the intervention:
G71: Resource: Training & Supervision | H71: Cost per person | I71: Population Cost
G72: WHELD Champion | H72: =J372 -> 1488.79 | I72: =H72*TotalPop -> 1045350.921
G73: WHELD Therapist | H73: =J373 -> 1331.54 | I73: =H73*TotalPop -> 934938.1479
G74: Total | H74: =SUM(H72:H73) -> 2820.33 | I74: =H74*TotalPop -> 1980289.069
G87: Cost for implementation of the intervention:
G89: Resource | H89: Cost per person | I89: Population Cost
G90: Physiotherapist (staff cost) | H90: =J388 -> 847.4346888 | I90: =H90*TotalPop -> 595024.5719
G91: Dietician (staff cost) | H91: =J389 -> 41.3382775 | I91: 29025.58887
G92: Respiratory nurse (staff cost) | H92: =J390 -> 103.3456938 | I92: 72563.97218
G93: Diet nutrition (material cost) | H93: =J391 -> 238.935244 | I93: 167767.9037
G94: Total (undiscounted) | H94: =SUM(H90:H93) -> 1231.053904 | I94: 864382.0366
G95: Total (discounted) | H95: =H94/2+(H94/2)/(1+H97) -> 1210.238983 | I95: 849766.8814
G97: Discount factor | H97: 0.035
G105: Cost for implementation of the intervention:
G107: Resource | H107: Cost per person | I107: Population cost
G108: Grants to providers | H108: =K411 -> 328.5292282 | I108: =H108*TotalPop -> 230676.1405
G109: Additional support grants | H109: =K412 -> 65.66080465 | I109: =H109*TotalPop -> 46103.60266
G110: VAR salaries and overheads | H110: =K413 -> 314.4270718 | I110: =H110*TotalPop -> 220774.3396
G111: Total | H111: =SUM(H108:H110) -> 708.6171046 | I111: =H111*TotalPop -> 497554.0827
G122: Cost for implementation of the intervention:
G124: Resource | H124: Cost per person | I124: Population cost
G125: Training, supervision & paperwork | H125: =I430*H426 -> 24.4533135 | I125: =H125*TotalPop -> 17169.84517
G126: Delivery of health coaching | H126: =SUM(I432:I438)*H426 -> 57.23221436 | I126: =H126*TotalPop -> 40185.48485
G127: Total | H127: =SUM(H125:H126) -> 81.68552786 | I127: =H127*TotalPop -> 57355.33002
G141: Cost for implementation of the intervention:
G143: Resource | H143: Cost per person | I143: Population cost
G144: BELLA delivery costs | H144: =J452 -> 411.1013908 | I144: =H144*TotalPop -> 288654.0193
G159: Cost for implementation of the intervention:
G161: Resource | H161: Cost per person | I161: Population cost
G162: Reablement service | H162: =J465 -> 1647.877725 | I162: =H162*TotalPop -> 1157054.049
G177: Cost for implementation of the intervention:
G179: Resource Items | H179: Cost per person | I179: Population cost
G180: Resource item #1 (or Total Costs) | I180: =IF(H180="","",H180*TotalPop) -> 
G181: =IF(G180="Resource item #1 (or Total Costs)","Resource item #2","") -> Resource item #2
G182: =IF(G181="Resource item #2","Resource item #3","") -> Resource item #3
G183: =IF(G182="Resource item #3","Resource item #4","") -> Resource item #4
G184: =IF(G183="Resource item #4","Resource item #5","") -> Resource item #5
G185: =IF(G184="Resource item #5","Resource item #6","") -> Resource item #6 | I185: =IF(H185="","",H185*TotalPop) -> 
G186: =IF(G185="Resource item #6","Resource item #7","") -> Resource item #7
G187: =IF(G186="Resource item #7","Resource item #8","") -> Resource item #8
G188: =IF(G187="Resource item #8","Resource item #9","") -> Resource item #9
G189: =IF(G188="Resource item #9","Resource item #10","") -> Resource item #10
G190: Total | H190: =IF(H180="","",SUM(H180:H189)) ->  | I190: =IF(H190="","",H190*TotalPop) -> 
G300: COST BREAKDOWN
G302: Selected intervention:
G304: Community Singing:
G305: Facilitator training | H305: Unit cost | I305: No. sessions per unit | J305: Cost per session | K305: Cost per participant
G306: Facilitator wage | H306: 233.9013366 | I306: 80 | J306: =H306/I306 -> 2.923766708 | K306: =(J306/131)*14 -> 0.3124636176
G307: Facilitator expenses | H307: 109.1539571 | I307: 80 | J307: =H307/I307 -> 1.364424464 | K307: =(J307/131)*14 -> 0.1458163549
G308: Trainer | H308: 311.8684488 | I308: =80*5 -> 400 | J308: =H308/I308 -> 0.779671122 | K308: =(J308/131)*14 -> 0.08332363136
G309: Trainer expenses | H309: 109.1539571 | I309: =80*5 -> 400 | J309: =H309/I309 -> 0.2728848927 | K309: =(J309/131)*14 -> 0.02916327098
G310: Venue hire | H310: 311.8684488 | I310: =80*5 -> 400 | J310: =H310/I310 -> 0.779671122 | K310: =(J310/131)*14 -> 0.08332363136
J311: TOTAL | K311: =SUM(K306:K310) -> 0.6540905062
G313: Capital expenditure | H313: Unit cost | I313: No. sessions per unit | J313: Cost per session | K313: Cost per participant
G314: Hand chimes | H314: 519.780748 | I314: =80*5 -> 400 | J314: =H314/I314 -> 1.29945187 | K314: =(J314/131)*14 -> 0.1388727189
G315: Keyboard | H315: 727.6930472 | I315: =80*5 -> 400 | J315: =H315/I315 -> 1.819232618 | K315: =(J315/131)*14 -> 0.1944218065
G316: Song sheets | H316: 37.42421386 | I316: =80*2 -> 160 | J316: =H316/I316 -> 0.2339013366 | K316: =(J316/131)*14 -> 0.02499708941
J317: TOTAL | K317: =SUM(K314:K316) -> 0.3582916149
G319: Indirect costs | H319: Unit cost | I319: No. sessions per unit | J319: Cost per session | K319: Cost per participant
G320: Advertising | H320: 31.18684488 | I320: 14 | J320: =H320/I320 -> 2.227631777 | K320: =(J320/131)*14 -> 0.2380675182
G321: Management | H321: 140.340802 | I321: 14 | J321: =H321/I321 -> 10.024343 | K321: =(J321/131)*14 -> 1.071303832
G322: Administration | H322: 187.1210693 | I322: 14 | J322: =H322/I322 -> 13.36579066 | K322: =(J322/131)*14 -> 1.428405109
J323: TOTAL | K323: =SUM(K320:K322) -> 2.737776459
G325: Session costs | H325: Unit cost | I325: No. sessions per unit | J325: Cost per session | K325: Cost per participant
G326: Facilitator | H326: 77.9671122 | I326: 1 | J326: =H326/I326 -> 77.9671122 | K326: =(J326/131)*14 -> 8.332363136
G327: Facilitator expenses | H327: 36.38465236 | I327: 1 | J327: =H327/I327 -> 36.38465236 | K327: =(J327/131)*14 -> 3.88843613
G328: Venue hire | H328: 31.18684488 | I328: 1 | J328: =H328/I328 -> 31.18684488 | K328: =(J328/131)*14 -> 3.332945255
G329: Refreshments | H329: 3.118684488 | I329: 1 | J329: =H329/I329 -> 3.118684488 | K329: =(J329/131)*14 -> 0.3332945255
J330: TOTAL | K330: =SUM(K326:K329) -> 15.88703905
G341: Help at home scheme:
H342: Unit cost (per hour) | I342: No of units | J342: Cost per participant
G343: Practical home help | H343: 10.79 | I343: 66.95 | J343: =H343*I343 -> 722.3905
G344: Befriending | H344: 10.45 | I344: 8.562 | J344: =H344*I344 -> 89.4729
G345: Welfare benefit advice | H345: Not Stated | I345: Unknown | J345: 77.19
I346: TOTAL | J346: =SUM(J343:J345) -> 889.0534
G357: Befriending:
G358: Resource Item | H358: Unit Costs | I358: No of units | J358: Cost per participant
G359: Befriending service | H359: 8.32 | I359: 12 | J359: =H359*I359 -> 99.84
G370: Dementia (nursing homes):
G371: Resource Item | I371: Cost (per nursing home) | J371: Cost (per person)
G372: WHELD Champion (training & supervision) | I372: 4734.16 | J372: 1488.79
G373: WHELD Therapist (training and supervision) | I373: 4234.13 | J373: 1331.54
G374: TOTAL COSTS | I374: =SUM(I372:I373) -> 8968.29 | J374: =SUM(J372:J373) -> 2820.33
G385: Hospital discharge support:
G386: Resource Item | H386: Mean cost per participant
H387: Intercom | I387: Usual Care | J387: Difference
G388: Physiotherapist | H388: 1066.52756 | I388: 219.0928708 | J388: =H388-I388 -> 847.4346888
G389: Dietician | H389: 57.8735885 | I389: 16.535311 | J389: =H389-I389 -> 41.3382775
G390: Respiratory nurse | H390: 121.5345359 | I390: 18.1888421 | J390: =H390-I390 -> 103.3456938
G391: Diet nutrition | H391: 264.564976 | I391: 25.62973205 | J391: =H391-I391 -> 238.935244
G392: TOTAL COSTS | H392: =SUM(H388:H391) -> 1510.50066 | I392: =SUM(I388:I391) -> 279.4467559 | J392: =SUM(J388:K391) -> 1231.053904
G402: Social prescribing:
G403: Population receiving intervention:
H404: non VCS | I404: VCS | J404: Combined
G405: Year 1 | H405: 208 | I405: 217 | J405: =SUM(H405:I405) -> 425
G406: Year 2 | H406: 281 | I406: 901 | J406: =SUM(H406:I406) -> 1182
G408: Intervention Costs:
G409: Resource Item | H409: Total costs for all participants | K409: Cost per participant
H410: Year 1 | I410: Year 2 | J410: Year 1 & 2 | K410: Year 1 & 2
G411: Grants to providers | H411: 322505.0123 | I411: 212631.9084 | J411: =H411+I411/(1+$H$415) -> 527946.4696 | K411: =J411/(SUM($J$405:$J$406)) -> 328.5292282
G412: Additional Support grants | H412: 12040.74863 | I412: 96747.83019 | J412: =H412+I412/(1+$H$415) -> 105516.9131 | K412: =J412/(SUM($J$405:$J$406)) -> 65.66080465
G413: Salaries & Overheads | H413: 231069.0742 | I413: 283812.7632 | J413: =H413+I413/(1+$H$415) -> 505284.3043 | K413: =J413/(SUM($J$405:$J$406)) -> 314.4270718
G414: Aggregated costs | H414: =SUM(H411:H413) -> 565614.8351 | I414: =SUM(I411:I413) -> 593192.5018 | J414: =SUM(J411:J413) -> 1138747.687 | K414: =SUM(K411:K413) -> 708.6171046
G415: Discount factor | H415: 0.035
G424: Interprofessional working (health coaching):
H425: % of full course
G426: Uptake of intervention | H426: 0.5348
H428: Mean per participant
G429: Resource Item: | H429: Duration (hours) | I429: Cost
G430: Training, supervision & paperwork | H430: N/A | I430: 45.7242212
G431: Intervention delivery: (full course)
G432: Call 1 | H432: =40/60 -> 0.6666666667 | I432: 22.74877882
G433: Call 2 | H433: 0.5 | I433: 17.20582456
G434: Call 3 | H434: =28/60 -> 0.4666666667 | I434: 15.97978078
G435: Call 4 | H435: =28/60 -> 0.4666666667 | I435: 15.97978078
G436: Call 5 | H436: =28/60 -> 0.4666666667 | I436: 15.97978078
G437: Call 6 | H437: =25/60 -> 0.4166666667 | I437: 14.14586654
G438: Unanswered/rescheduled call | H438: =10/60 -> 0.1666666667 | I438: 4.976295368
G439: Intervention costs (assuming full course) | I439: =SUM(I430:I438) -> 152.7403288
G440: Intervention costs (assuming mean uptake) | I440: =I439*H426 -> 81.68552786
G450: Self-management of COPD:
G451: Resource | H451: Total Costs | I451: Number of participant | J451: Cost per person
G452: BELLA delivery costs | H452: 32065.90848 | I452: 78 | J452: =H452/I452 -> 411.1013908
G463: Reablement:
G464: Resource | H464: Unit Cost | I464: Mean hours | J464: Total Costs
G465: Reablement service | H465: 43.87065203 | I465: 37.56218905 | J465: =H465*I465 -> 1647.877725
G476: User defined Intervention
G477: No additional breakdown on costs is available for a user defined intervention.

Sheet 2d) Outcomes
G12: Selected intervention:
G15: Parameter | H15: Mean change per person | I15: 95% CI
I16: Lower | J16: Upper
G17: Social care costs | H17: =(H310-H308)-(H309-H307) -> -3.409761707 | I17: =(J310-J308)-(J309-J307) -> -7.395608587 | J17: =(I310-I308)-(I309-I307) -> 0.3062946246
G18: NHS costs: primary care | H18: =(K310-K308)-(K309-K307) -> -1.16431 | I18: =(M310-M308)-(M309-M307) -> -5.056011292 | J18: =(N310-N308)-(N309-N307) -> 2.727393541
G19: NHS costs: secondary care | H19: =(O310-O308)-(O309-O307) -> 40.68843696 | I19: =(P310-P308)-(P309-P307) -> -155.1192082 | J19: =(Q310-Q308)-(Q309-Q307) -> 236.4960821
G20: QALYs (derived from EQ-5D) | H20: =H313 -> 0.015 | I20: =I313 -> 0.014 | J20: =J313 -> 0.016
G21: York SF12 | H21: 2.35 | I21: 0.06 | J21: 4.76
G33: Parameter | H33: Mean change per person | I33: 95% CI
I34: Lower | J34: Upper
G35: NHS costs | H35: =H322 -> -2352.63 | I35: Not reported | J35: Not reported
G36: Social care costs | H36: =H326 -> -270.9 | I36: Not reported | J36: Not reported
G37: QALYs (derived from EQ-5D) | H37: =H336 -> 0.042 | I37: Not reported | J37: Not reported
G38: QALYs (derived from ASCOT) | H38: =H341 -> 0.07 | I38: =I341 -> 0.016 | J38: =J341 -> 0.142
G51: Parameter | H51: Mean change per person | I51: 95% CI
I52: Lower | J52: Upper
G53: NHS costs | H53: -47 | I53: Not reported | J53: Not reported
G54: Social care costs | H54: Not Reported | I54: Not reported | J54: Not reported
G55: QALYs | H55: 0.009 | I55: Not reported | J55: Not reported
G69: Parameter | H69: Mean change per person | I69: 95% CI
I70: Lower | J70: Upper
G71: NHS costs (excludes care home accommodation charges) | H71: =M368-M367 -> -354.4898698 | I71: Not reported | J71: Not reported
G72: NHS & social care costs (includes care home accommodation charges) | H72: =M368 -> -4927.520891 | I72: =N368 -> -1345.81934 | J72: =O368 -> -364.2009104
G73: QALYs | H73: =H372 -> 0.01 | I73: =J372 -> 0.001 | J73: 0.018
G74: DEMQOL-Proxy | H74: =H373 -> 2.54 | I74: 0.81 | J74: 4.28
G75: CMAI | H75: =H374 -> -4.27 | I75: -7.39 | J75: -1.15
G76: Neuropsychiatric Inventory | H76: =H375 -> -4.55 | I76: -7.07 | J76: -2.2
G87: Parameter | H87: Mean change per person | I87: 95% CI
I88: Lower | J88: Upper
G89: NHS costs (discounted) | H89: =J396/2+(J396/2)/(1+H95) -> 532.3751067 | I89: Not reported | J89: Not reported
G90: Social care costs | H90: Not reported | I90: Not reported | J90: Not reported
G91: QALYs (discounted) | H91: =J401/2+(J401/2)/(1+H96) -> 0.079408867 | I91: =K401/2+(K401/2)/(1+H96) -> -0.009926108374 | J91: =M401/2+(M401/2)/(1+H96) -> 0.1786699507
G92: Total COPD exacerbations | H92: =J402 -> 0.84 | I92: -0.07 | J92: =M402 -> 1.78
G93: Improved SGRQ score | H93: 0.3 | I93: 0.03 | J93: =M403 -> 0.56
G95: Discount factor: Costs | H95: 0.035
G96: Discount factor: QALYs | H96: 0.015
G105: Parameter | H105: Mean change per person | I105: 95% CI
I106: Lower | J106: Upper
G107: NHS costs (discounted) | H107: =Q417 -> -347.9639669 | I107: Not reported | J107: Not reported
G108: Social care costs | H108: Not reported | I108: Not reported | J108: Not reported
G109: QALYs (discoutned) | H109: =H431 -> 0.02425279146 | I109: Not reported | J109: Not reported
G111: Discount Factor: Costs | H111: =N408 -> 0.035
G112: Discount Factor: QALYs | H112: =N409 -> 0.015
G123: Parameter | H123: Mean change per person | I123: 95% CI
I124: Lower | J124: Upper
G125: NHS costs | H125: 73.45238626 | I125: -566.5568942 | J125: 713.4606364
G126: Social care costs | H126: Not reported | I126: Not reported | J126: Not reported
G127: QALYs | H127: 0.019 | I127: -0.006 | J127: 0.043
G128: Patient Activation Measure | H128: 1.44 | I128: -0.46 | J128: 3.33
G129: WHOQOL-BREF | H129: 1.62 | I129: -0.32 | J129: 3.56
G141: Parameter | H141: Mean change per person | I141: 95% CI
I142: Lower | J142: Upper
G143: NHS costs | H143: 104.0908721 | I143: Not reported | J143: Not reported
G144: Social care costs | H144: Not reported | I144: Not reported | J144: Not reported
G145: QALYs | H145: 0.113 | I145: Not reported | J145: Not reported
G146: Respiratory Questionnaire | H146: -0.4 | I146: -5.1 | J146: 4.4
G147: Strengthening exercise | H147: 12.4 | I147: -3.8 | J147: 28.6
G148: Aerobic exercise | H148: 10.1 | I148: -16.3 | J148: 35.5
G159: Parameter | H159: Mean change per person | I159: 95% CI
I160: Lower | J160: Upper
G161: NHS costs | H161: 557.6592832 | I161: Not reported | J161: Not reported
G162: Social care costs | H162: -1897.787659 | I162: Not reported | J162: Not reported
G163: QALYS (derived from EQ-5D) | H163: 0.107 | I163: Not reported | J163: Not reported
G164: QALYs (derived from ASCOT) | H164: 0.026 | I164: Not reported | J164: Not reported
G177: Parameter | H177: Mean change (per person) | I177: 95% CI
I178: Lower | J178: Upper
G179: NHS costs
G180: Social care costs
G181: QALYs
G182: Primary Clinical Outcome
E300: OUTCOMES DATA
E302: Selected intervention:
E303: Community singing:
E305: Change in cost of care use (£) | H305: Social care | K305: Primary care | O305: Secondary care
H306: Mean | I306: Lower CI | J306: Upper CI | K306: Mean | M306: Lower CI | N306: Upper CI | O306: Mean | P306: Lower CI | Q306: Upper CI
E307: Baseline | G307: Control | H307: 2.68206866 | I307: -0.4107633271 | J307: 5.987113944 | K307: 69.00609 | M307: 53.05214974 | N307: 84.96003448 | O307: 284.4448166 | P307: 152.6159441 | Q307: 416.273689
G308: Intervention | H308: 4.220619674 | I308: -0.1561216844 | J308: 8.93130909 | K308: 62.84149 | M308: 51.6146441 | N308: 74.06834077 | O308: 238.6625283 | P308: 135.9908608 | Q308: 341.3341957
E309: 6 months | G309: Control | H309: 5.23938994 | I309: -0.7678305788 | J309: 11.66116667 | K309: 88.58104 | M309: 70.93593407 | N309: 106.2261361 | O309: 554.5852669 | P309: 296.000998 | Q309: 813.1695359
G310: Intervention | H310: 3.368179247 | I310: -0.2068943115 | J310: 7.209753226 | K310: 81.25213 | M310: 64.44241714 | N310: 98.06183592 | O310: 549.4914156 | P310: 124.2567065 | Q310: 974.7261247
H312: Mean Difference | I312: Lower CI | J312: Upper CI
G313: QALYs (derived from EQ-5D) | H313: 0.015 | I313: 0.014 | J313: 0.016
G314: York SF12 | H314: 2.35 | I314: 0.06 | J314: 4.76
E320: Healthcare Costs
H321: Mean Difference
E322: Aggregated Healthcare Costs | H322: -2352.63
E324: Social Care Costs
H325: Mean Difference
E326: Public Sector Costs (Participant) | H326: -270.9
E328: Additional Costs
H329: Mean Difference
E330: Personal Costs (Participant) | H330: -988.04
E331: Public Sector Costs (Spouse) | H331: -29.23
E332: Personal Costs (Spouse) | H332: 560.9
E334: QALYS
H335: Mean Difference | I335: P-value
E336: Physical QALYs | H336: 0.042 | I336: 0.05
E337: Mental QALYs | H337: 0.0095 | I337: Not significant
E339: Social Care Related Quality of Life
H340: Mean Difference | I340: 95% CI Low | J340: 95% CI High
E341: ASCOT | H341: 0.07 | I341: 0.016 | J341: 0.142
E351: No additional breakdown on outcomes is available for this intervention.
E360: NHS & Social Care Costs:
H361: Intervention | J361: Control | M361: Difference (Intervention - Control)
H362: Mean | I362: SD | J362: Mean | K362: SD | M362: Mean | N362: 95% CI Low | O362: 95% CI High
E363: Hospital Admissions | H363: 279.64 | I363: 1212.13 | J363: 272.365112 | K363: 1317.124416 | M363: =H363-J363 -> 7.274888031 | N363: -190.2397538 | O363: 195.4375613
E364: Primary Care | H364: 727.69 | I364: 274.44 | J364: 1060.352726 | K364: 312.9080103 | M364: =H364-J364 -> -332.662726 | N364: -378.4003846 | O364: -287.9585344
E365: Community healthcare | H365: 81.09 | I365: 270.29 | J365: 72.76930472 | K365: 214.1496682 | M365: =H365-J365 -> 8.320695276 | N365: -23.90991441 | O365: 45.74070583
E366: Emergency | H366: 50.94 | I366: 138.26 | J366: 88.36272717 | K366: 253.653005 | M366: =H366-J366 -> -37.42272717 | N366: -70.69018173 | O366: -10.39561496
E367: Care Home Accomodation Costs | H367: 29737.69616 | I367: 11292.75653 | J367: 34310.72718 | K367: 12919.67027 | M367: =H367-J367 -> -4573.031021 | N367: -5951.489565 | O367: -3012.649216
E368: Total NHS and Social Care Costs | H368: =SUM(H363:H367) -> 30877.05616 | J368: =SUM(J363:J367) -> 35804.57705 | M368: =SUM(M363:M367) -> -4927.520891 | N368: -1345.81934 | O368: -364.2009104
E370: Health/Clinical Outcomes:
H371: Mean Difference | I371: SEM | J371: 95% CI Lower | K371: 95% CI Upper | M371: N | N371: P-value
E372: QALYs | H372: 0.01 | I372: Not reported | J372: 0.001 | K372: 0.018 | M372: 553 | N372: Not reported
E373: DEMQOL-Proxy | H373: 2.54 | I373: 0.88 | J373: 0.81 | K373: 4.28 | M373: 533 | N373: 0.0042
E374: Cohen-Mansfield Agitiation Invention | H374: -4.27 | I374: 1.59 | J374: -7.39 | K374: -1.15 | M374: 533 | N374: 0.0076
E375: Neuropsychiatric Inventory | H375: -4.55 | I375: 1.28 | J375: -7.07 | K375: -2.2 | M375: 547 | N375: <0.001
E387: Healtcare Costs:
J388: Incremental difference (intervention - control)
H389: Intervention | I389: Control | J389: Mean | K389: 95% CI Low | M389: 95% CI High
E390: GP Vists | H390: 134.7627847 | I390: 144.6839713 | J390: =H390-I390 -> -9.9211866 | K390: -48.77916745 | M390: 29.7635598
E391: Specialist | H391: 471.2563635 | I391: 504.3269855 | J391: =H391-I391 -> -33.070622 | K391: -147.1642679 | M391: 83.50332055
E392: Hospital admissions | H392: 2433.997779 | I392: 2772.144889 | J392: -338.14711 | K392: -1722.979406 | M392: 1128.534976
E393: Prescribed medication | H393: 2920.135923 | I393: 2743.208095 | J393: 176.9278277 | K393: -197.5969665 | M393: 551.4526219
E394: Oxygen use | H394: 162.0460478 | I394: 47.12563635 | J394: 114.9204115 | K394: -10.74795215 | M394: 251.3367272
E395: Other direct medical costs | H395: 2406.714516 | I395: 1775.892401 | J395: 630.8221147 | K395: -997.9060189 | M395: 2405.060985
E396: Total healthcare costs | J396: =SUM(J390:J395) -> 541.5314353 | K396: Not reported | M396: Not reported
E398: Health/Clinical Outcomes:
J399: Incremental difference (intervention - control)
H400: Intervention | I400: Control | J400: Mean | K400: 95% CI Low | M400: 95% CI High
E401: QALYs | H401: 1.62 | I401: 1.54 | J401: =H401-I401 -> 0.08 | K401: -0.01 | M401: 0.18
E402: Total COPD exacerbations | H402: 3.02 | I402: 2.18 | J402: =H402-I402 -> 0.84 | K402: -0.07 | M402: 1.78
E403: Improved SGRQ score | H403: 0.13 | I403: -0.17 | J403: =H403-I403 -> 0.3 | K403: 0.03 | M403: 0.56
E406: Population receiving intervention: | L406: Discounting
H407: non VCS | I407: VCS
E408: Year 1 | H408: 208 | I408: 217 | L408: Costs Discount Factor | N408: 0.035
E409: Year 2 | H409: 281 | I409: 901 | L409: QALY Discount Factor | N409: 0.015
E411: Healthcare Costs: | H411: 12-month costs (per person)
H412: 12 month per person costs (non VCS) | K412: 12-month per person costs (VCS) | O412: 12-month per person costs (VCS & non VCS)
H413: Before | I413: After | J413: Difference | K413: Before | M413: After | N413: Difference | O413: Before | P413: After | Q413: Difference
E414: Hospital admission (inpatient stay) | H414: 2737.165419 | I414: 2530.292681 | J414: =H414-I414 -> 206.8727377 | K414: 2372.279334 | M414: 2080.162554 | N414: =L414-M414 -> -2080.162554 | O414: =(H414*SUM($H$408:$H$409)+(K414/(1+$N$408))*SUM($I$408:$I$409))/SUM($H$408:$I$409) -> 2427.500922 | P414: =(I414*SUM($H$408:$H$409)+(M414/(1+$N$408))*SUM($I$408:$I$409))/SUM($H$408:$I$409) -> 2168.195795 | Q414: =P414-O414 -> -259.3051271
E415: A & E attendance | H415: 208.9518607 | I415: 180.8837003 | J415: =H415-I415 -> 28.06816039 | K415: 229.7430906 | M415: 190.2397538 | N415: =L415-M415 -> -190.2397538 | O415: =(H415*SUM($H$408:$H$409)+(K415/(1+$N$408))*SUM($I$408:$I$409))/SUM($H$408:$I$409) -> 218.0114453 | P415: =(I415*SUM($H$408:$H$409)+(M415/(1+$N$408))*SUM($I$408:$I$409))/SUM($H$408:$I$409) -> 182.9171281 | Q415: =P415-O415 -> -35.09431719
E416: Outpatient appointment | H416: 191.2793153 | I416: 150.7364169 | J416: =H416-I416 -> 40.54289835 | K416: 214.1496682 | M416: 152.8155399 | N416: =L416-M416 -> -152.8155399 | O416: =(H416*SUM($H$408:$H$409)+(K416/(1+$N$408))*SUM($I$408:$I$409))/SUM($H$408:$I$409) -> 202.1522143 | P416: =(I416*SUM($H$408:$H$409)+(M416/(1+$N$408))*SUM($I$408:$I$409))/SUM($H$408:$I$409) -> 148.5876917 | Q416: =P416-O416 -> -53.5645226
E417: Aggregated NHS costs (Year 1) | H417: =SUM(H414:H416) -> 3137.396595 | I417: =SUM(I414:I416) -> 2861.912799 | J417: =H417-I417 -> 275.4837965 | K417: =SUM(K414:L416) -> 2816.172093 | L417: 2816.172093 | M417: =SUM(M414:M416) -> 2423.217847 | N417: =K417-M417 -> 392.9542455 | O417: =SUM(O414:O416) -> 2847.664582 | P417: =SUM(P414:P416) -> 2499.700615 | Q417: =SUM(Q414:Q416) -> -347.9639669
E419: QALYs:
E420: Well-being category | H420: Difference (after - before)
E421: Feeling positive | H421: 0.004633333333
E422: Lifestyle | H422: 0.0022
E423: Looking after yourself | H423: 0.002166666667
E424: Managing symptoms | H424: 0.0014
E425: Work, volunteering and social group | H425: 0.006133333333
E426: Money | H426: 0.002666666667
E427: Where you live | H427: 0.002266666667
E428: Family and friends | H428: 0.002966666667
E429: Aggregated QALYs | H429: =SUM(H421:H428) -> 0.02443333333
E431: Discounted QALYs | H431: =H429/2+((H429/2)/(1+N409)) -> 0.02425279146
E451: No additional breakdown on outcomes is available for this intervention.
E462: No additional breakdown on outcomes is available for this intervention.
E476: No additional breakdown on outcomes is available for this intervention.
E488: No additional breakdown on outcomes is available for this intervention.

Sheet 3a) Results summary
G12: Select intervention:
G14: Target population receiving intervention | H14: =TotalPop -> 702.148
G16: Time horizon for analysis (months) | H16: =CHOOSE(IntChoice,'2a) Interventions'!M100,'2a) Interventions'!M101,'2a) Interventions'!M102,'2a) Interventions'!M103,'2a) Interventions'!M104,'2a) Interventions'!M105, '2a) Interventions'!M106,'2a) Interventions'!M107,'2a) Interventions'!M108,IF('2a) Interventions'!L85=TRUE,'2a) Interventions'!M109,"")) -> 24
G18: Value of a QALY | H18: £
G19: PHE value | H19: 60000
G20: Value used in model | H20: 60000
G22: Results summary:
G24: Cost impact | H24: Total population | I24: Per patient | J24: 95% CI low | K24: 95% CI High
G25: Intervention costs | H25: =CHOOSE(IntChoice,'2c) Intervention costs'!I22,'2c) Intervention costs'!I39,'2c) Intervention costs'!I55,'2c) Intervention costs'!I74,'2c) Intervention costs'!I95,'2c) Intervention costs'!I111,'2c) Intervention costs'!I127,'2c) Intervention costs'!I144,'2c) Intervention costs'!I162,IF('2a) Interventions'!L85=TRUE,'2c) Intervention costs'!I190,"")) -> 497554.0827 | I25: =CHOOSE(IntChoice,'2c) Intervention costs'!H22,'2c) Intervention costs'!H39,'2c) Intervention costs'!H55,'2c) Intervention costs'!H74,'2c) Intervention costs'!H95,'2c) Intervention costs'!H111,'2c) Intervention costs'!H127,'2c) Intervention costs'!H144,'2c) Intervention costs'!H162,IF(Usertickbox=TRUE,'2c) Intervention costs'!H190,"")) -> 708.6171046 | J25: N/A | K25: N/A
G26: =CHOOSE(IntChoice,"NHS costs",'2d) Outcomes'!G35,'2d) Outcomes'!G53,'2d) Outcomes'!G71,'2d) Outcomes'!G89,'2d) Outcomes'!G107,'2d) Outcomes'!G125,'2d) Outcomes'!G143,'2d) Outcomes'!G161,"NHS costs") -> NHS costs (discounted) | H26: =IF(I26="Not reported","Not reported", IF(I26="","",I26*TotalPop)) -> -244322.2034 | I26: =CHOOSE(IntChoice,SUM('2d) Outcomes'!H18:H19),'2d) Outcomes'!H35,'2d) Outcomes'!H53,'2d) Outcomes'!H71,'2d) Outcomes'!H89,'2d) Outcomes'!H107,'2d) Outcomes'!H125,'2d) Outcomes'!H143,'2d) Outcomes'!H161,IF('2a) Interventions'!L85=TRUE,H105,"")) -> -347.9639669 | J26: =CHOOSE(IntChoice,"Not reported",'2d) Outcomes'!I35,'2d) Outcomes'!I53,'2d) Outcomes'!I71,'2d) Outcomes'!I89,'2d) Outcomes'!I107,'2d) Outcomes'!I125,'2d) Outcomes'!I143,'2d) Outcomes'!I161,IF('2a) Interventions'!L85=TRUE,'2d) Outcomes'!I179,"")) -> Not reported | K26: =CHOOSE(IntChoice,"Not reported",'2d) Outcomes'!J35,'2d) Outcomes'!J53,'2d) Outcomes'!J71,'2d) Outcomes'!J89,'2d) Outcomes'!J107,'2d) Outcomes'!J125,'2d) Outcomes'!J143,'2d) Outcomes'!J161,IF('2a) Interventions'!L85=TRUE,'2d) Outcomes'!IJ79,"")) -> Not reported
G27: =CHOOSE(IntChoice,"Social care costs",'2d) Outcomes'!G36,'2d) Outcomes'!G54,'2d) Outcomes'!G72,'2d) Outcomes'!G90,'2d) Outcomes'!G108,'2d) Outcomes'!G126,'2d) Outcomes'!G144,'2d) Outcomes'!G162,"Socialcarecosts") -> Social care costs | H27: =IF(I27="Not reported","Not reported", IF(I27="","",I27*TotalPop)) -> Not reported | I27: =CHOOSE(IntChoice,'2d) Outcomes'!H17,'2d) Outcomes'!H36,'2d) Outcomes'!H54,'2d) Outcomes'!H72,'2d) Outcomes'!H90,'2d) Outcomes'!H108,'2d) Outcomes'!H126,'2d) Outcomes'!H144,'2d) Outcomes'!H162,IF('2a) Interventions'!L85=TRUE,H106,"")) -> Not reported | J27: =CHOOSE(IntChoice,'2d) Outcomes'!I17,'2d) Outcomes'!I36,'2d) Outcomes'!I54,'2d) Outcomes'!I72,'2d) Outcomes'!I90,'2d) Outcomes'!I108,'2d) Outcomes'!I126,'2d) Outcomes'!I144,'2d) Outcomes'!I162,IF('2a) Interventions'!L85=TRUE,'2d) Outcomes'!I180,"")) -> Not reported | K27: =CHOOSE(IntChoice,'2d) Outcomes'!J17,'2d) Outcomes'!J36,'2d) Outcomes'!J54,'2d) Outcomes'!J72,'2d) Outcomes'!J90,'2d) Outcomes'!J108,'2d) Outcomes'!J126,'2d) Outcomes'!J144,'2d) Outcomes'!J162,IF('2a) Interventions'!L85=TRUE,'2d) Outcomes'!J1180,"")) -> Not reported
G28: Net cost of intervention | H28: =CHOOSE(IntChoice,SUM(H25:H27),SUM(H25:H27),SUM(H25:H27),SUM(H25,H27),SUM(H25:H27),SUM(H25:H27),SUM(H25:H27),SUM(H25:H27),SUM(H25:H27),IF(H25="","",SUM(H25:H27))) -> 253231.8793 | I28: =CHOOSE(IntChoice,SUM(I25:I27),SUM(I25:I27),SUM(I25:I27),SUM(I25,I27),SUM(I25:I27),SUM(I25:I27),SUM(I25:I27),SUM(I25:I27),SUM(I25:I27),IF(I25="","",SUM(I25:I27))) -> 360.6531377 | J28: N/A | K28: N/A
G30: Quality of life impact | H30: Total population | I30: Per patient | J30: 95% CI low | K30: 95% CI High
G31: QALY gains | H31: =IF(I31="","",I31*TotalPop) -> 17.02904902 | I31: =CHOOSE(IntChoice,'2d) Outcomes'!H20,'2d) Outcomes'!H37,'2d) Outcomes'!H55,'2d) Outcomes'!H73,'2d) Outcomes'!H91,'2d) Outcomes'!H109,'2d) Outcomes'!H127,'2d) Outcomes'!H145,'2d) Outcomes'!H163,IF('2a) Interventions'!L85=TRUE,H107,"")) -> 0.02425279146 | J31: =CHOOSE(IntChoice,'2d) Outcomes'!I20,'2d) Outcomes'!I37,'2d) Outcomes'!I55,'2d) Outcomes'!I73,'2d) Outcomes'!I91,'2d) Outcomes'!I109,'2d) Outcomes'!I127,'2d) Outcomes'!I145,'2d) Outcomes'!I163,IF('2a) Interventions'!L85=TRUE,I107,"")) -> Not reported | K31: =CHOOSE(IntChoice,'2d) Outcomes'!J20,'2d) Outcomes'!J37,'2d) Outcomes'!J55,'2d) Outcomes'!J73,'2d) Outcomes'!J91,'2d) Outcomes'!J109,'2d) Outcomes'!J127,'2d) Outcomes'!J145,'2d) Outcomes'!J163,IF('2a) Interventions'!L85=TRUE,J107,"")) -> Not reported
G32: Value of QALY gains | H32: =IF(I31="","",H31*$H$20) -> 1021742.941 | I32: =IF(I31="","",I31*$H$20) -> 1455.167488 | J32: =IF(J31="Not reported","Not reported",IF(J31="","",J31*$H$20)) -> Not reported | K32: =IF(K31="Not reported","Not reported",IF(K31="","",K31*$H$20)) -> Not reported
G34: Clinical impacts | H34: Total population | I34: Per patient | J34: 95% CI low | K34: 95% CI High
G35: =CHOOSE(IntChoice,"None Reported",'2d) Outcomes'!G38,"None Reported",'2d) Outcomes'!G75,'2d) Outcomes'!G93,"None Reported",'2d) Outcomes'!G128,'2d) Outcomes'!G146,'2d) Outcomes'!G164,IF('2a) Interventions'!L85=TRUE,'2d) Outcomes'!G182,"")) -> None Reported | H35: =IF(I35="N/A","N/A",IF(I35="","",I35*TotalPop)) -> N/A | I35: =CHOOSE(IntChoice,"N/A",'2d) Outcomes'!H38,"N/A",'2d) Outcomes'!H75,'2d) Outcomes'!H93,"N/A",'2d) Outcomes'!H128,'2d) Outcomes'!H146,'2d) Outcomes'!H164,IF('2a) Interventions'!L85=TRUE,H108,"")) -> N/A | J35: =CHOOSE(IntChoice,"N/A",'2d) Outcomes'!I38,"N/A",'2d) Outcomes'!I75,'2d) Outcomes'!I93,"N/A",'2d) Outcomes'!I128,'2d) Outcomes'!I146,'2d) Outcomes'!I164,IF('2a) Interventions'!L85=TRUE,I108,"")) -> N/A | K35: =CHOOSE(IntChoice,"N/A",'2d) Outcomes'!J38,"N/A",'2d) Outcomes'!J76,'2d) Outcomes'!J93,"N/A",'2d) Outcomes'!J128,'2d) Outcomes'!J146,'2d) Outcomes'!J164,IF('2a) Interventions'!L85=TRUE,J108,"")) -> N/A
G37: ROI | H37: Cost-benefit ratio
G38: =CHOOSE(IntChoice,"Financial (NHS)","Financial (NHS)","Financial (NHS)","Financial (NHS excluding accomodation charges)","Financial (NHS)","Financial (NHS)","Financial (NHS)","Financial (NHS)","Financial (NHS)","Financial (NHS)") -> Financial (NHS) | H38: =IF(I26="Not Reported","Not Reported",IF(I26="","","£1.00 : "&"£"&ROUND(H96/$I$25,2))) -> £1.00 : £0.49
G39: Financial (Social Care) | H39: =CHOOSE(IntChoice,"£1.00 : "&"£"&ROUND(H97/$I$25,2),"£1.00 : "&"£"&ROUND(H97/$I$25,2),"Not reported","Not reported","Not reported","Not reported","Not reported","Not reported","£1.00 : "&"£"&ROUND(H97/$I$25,2),IF(I27="","","£1.00 : "&"£"&ROUND(H97/$I$25,2))) -> Not reported
G40: Financial (NHS & Social Care) | H40: =IF(OR(I26="Not reported",I27="Not reported"),"Not reported",IF(OR(I26="",I27=""),"","£1.00 : "&"£"&ROUND(H98/$I$25,2))) -> Not reported
G41: Societal | H41: =IF(AND(H38="",H39="",I31=""),"","£1.00 : "&"£"&ROUND(H99/$I$25,2)) -> £1.00 : £2.54
D96: Health savings | H96: =-SUM(I26) -> 347.9639669
D97: Social Care savings | H97: =-I27 -> 
D98: Health + social care savings | H98: =CHOOSE(IntChoice,-SUM(I26:I27),-SUM(I26:I27),-SUM(I26:I27),-SUM(I27),-SUM(I26:I27),-SUM(I26:I27),-SUM(I26:I27),-SUM(I26:I27),-SUM(I26:I27),-SUM(I26:I27)) -> 347.9639669
D99: Savings + QALY gain | H99: =H98+I32 -> 1803.131455
D101: ='2a) Interventions'!G45 -> Uncontrolled before and after study design. QALYs were not measured directly but derived based on scores on a well-being tool developed specifically for the Social Prescribing pilot study. | G101: NHS and social care costs were grouped in this analysis as care home accommodation costs may be attributable to either budget.
D102: =CHOOSE(IntChoice,"Study limitations: "&'2a) Interventions'!G45,"Study limitations: "&'2a) Interventions'!G45,"Study limitations: "&'2a) Interventions'!G45,"Study limitations: "&'2a) Interventions'!G45&" "&G101,"Study limitations: "&'2a) Interventions'!G45,"Study limitations: "&'2a) Interventions'!G45,"Study limitations: "&'2a) Interventions'!G45,"Study limitations: "&'2a) Interventions'!G45,"Study limitations: "&'2a) Interventions'!G45,"Study limitations: "&'2a) Interventions'!G45) -> Study limitations: Uncontrolled before and after study design. QALYs were not measured directly but derived based on scores on a well-being tool developed specifically for the Social Prescribing pilot study.
D104: User defined intervention results | H104: Mean | I104: 95% Lower | J104: 95% Upper
D105: Health costs | H105: =IF('2d) Outcomes'!H179="","",'2d) Outcomes'!H179) -> 
D106: Social Costs | H106: =IF('2d) Outcomes'!H180="","",'2d) Outcomes'!H180) ->  | I106: =IF('2d) Outcomes'!I180="","",'2d) Outcomes'!I180) ->  | J106: =IF('2d) Outcomes'!J180="","",'2d) Outcomes'!J180) -> 
D107: QALYS | H107: =IF('2d) Outcomes'!H181="","",'2d) Outcomes'!H181) ->  | I107: =IF('2d) Outcomes'!I181="","",'2d) Outcomes'!I181) ->  | J107: =IF('2d) Outcomes'!J181="","",'2d) Outcomes'!J181) -> 
D108: Clinical Outcomes | H108: =IF('2d) Outcomes'!H182="","",'2d) Outcomes'!H182) ->  | I108: =IF('2d) Outcomes'!I182="","",'2d) Outcomes'!I182) ->  | J108: =IF('2d) Outcomes'!J182="","",'2d) Outcomes'!J182) -> 

Sheet 3b) Results charts
G12: Selected intervention:

Sheet 3c) Sensitivity analysis
G12: Selected Intervention:
G207: Threshold Analysis Text
G209: The current base-case inputted value for | I209: intervention costs is | K209: £ | L209: =ROUND(int_costs,2) -> 708.62 | N209: . | O209: To result in a societal ROI of 1:1 intervention costs would have to increase to | S209: £ | T209: =ROUND(Calculations!C60,2) -> 1803.13 | U209: .
G210: The current base-case inputted value for incremental | I210: QALYs is | L210: =ROUND(QALY_gain,4) -> 0.0243 | N210: . | O210: To result in a societal ROI of 1:1 incremental QALYs would have to decrease to | T210: =ROUND(Calculations!C64,4) -> 0.006 | U210: .
G211: The current base-case inputted value for incremental | I211: =Calculations!C29&" is " -> NHS costs is | K211: £ | L211: =CHOOSE(IntChoice,ROUND(NHS_Costs,2),ROUND(NHS_Costs,2),ROUND(NHS_Costs,2),ROUND(SocialC_costs,2),ROUND(NHS_Costs,2),ROUND(NHS_Costs,2),ROUND(NHS_Costs,2),ROUND(NHS_Costs,2),ROUND(NHS_Costs,2),ROUND(NHS_Costs,2)) -> -347.96 | N211: . | O211: ="To result in a societal ROI of 1:1 incremental "&Calculations!C29&" would have to increase to " -> To result in a societal ROI of 1:1 incremental NHS costs would have to increase to | S211: £ | T211: =ROUND(Calculations!C90,2) -> 746.55 | U211: .
G212: The current base-case inputted value for incremental | I212: social care costs is | K212: £ | L212: =CHOOSE(IntChoice,ROUND(SocialC_costs,2),ROUND(SocialC_costs,2),ROUND(SocialC_costs,2),ROUND(asd,2),ROUND(SocialC_costs,2),ROUND(SocialC_costs,2),ROUND(SocialC_costs,2),ROUND(SocialC_costs,2),ROUND(SocialC_costs,2),ROUND(SocialC_costs,2)) ->  | N212: . | O212: To result in a societal ROI of 1:1 incremental social care costs would have to increase to | S212: £ | T212: =ROUND(Calculations!C114,2) -> 0 | U212: .
G214: =IFERROR(G209&I209&K209&L209&N209&O209&S209&T209&U209,"") -> The current base-case inputted value for intervention costs is £708.62. To result in a societal ROI of 1:1 intervention costs would have to increase to £1803.13.
G215: =IFERROR(G210&I210&K210&L210&N210&O210&S210&T210&U210,"") -> The current base-case inputted value for incremental QALYs is 0.0243. To result in a societal ROI of 1:1 incremental QALYs would have to decrease to 0.006.
G216: =IFERROR(G211&I211&K211&L211&N211&O211&S211&T211&U211,"") -> The current base-case inputted value for incremental NHS costs is £-347.96. To result in a societal ROI of 1:1 incremental NHS costs would have to increase to £746.55.
G217: =IFERROR(G212&I212&K212&L212&N212&O212&S212&T212&U212,"") -> 

Sheet Calculations
B3: 3b) Results charts
B5: Graph 1:
C6: ='2a) Interventions'!H85&" vs comparator" -> Bundle of VCS services for people with LTCs vs comparator | F6: For Graph 1
C7: Population | D7: Per person | F7: Population | G7: Per Person
B8: Intervention costs | C8: ='3a) Results summary'!H25 -> 497554.0827 | D8: ='3a) Results summary'!I25 -> 708.6171046 | E8: Intervention costs | F8: ='3a) Results summary'!H25 -> 497554.0827 | G8: ='3a) Results summary'!I25 -> 708.6171046
B9: Healthcare cost | C9: ='3a) Results summary'!H26 -> -244322.2034 | D9: ='3a) Results summary'!I26 -> -347.9639669 | E9: =CHOOSE(IntChoice,"NHS costs","NHS costs","NHS costs","","NHS costs","NHS costs","NHS costs","NHS costs","NHS costs","NHS costs") -> NHS costs | F9: =CHOOSE(IntChoice,'3a) Results summary'!H26,'3a) Results summary'!H26,'3a) Results summary'!H26,"",'3a) Results summary'!H26,'3a) Results summary'!H26,'3a) Results summary'!H26,'3a) Results summary'!H26,'3a) Results summary'!H26,'3a) Results summary'!H26) -> -244322.2034 | G9: =CHOOSE(IntChoice,'3a) Results summary'!I26,'3a) Results summary'!I26,'3a) Results summary'!I26,"",'3a) Results summary'!I26,'3a) Results summary'!I26,'3a) Results summary'!I26,'3a) Results summary'!I26,'3a) Results summary'!I26,'3a) Results summary'!I26) -> -347.9639669
B10: Social care costs | C10: =CHOOSE(IntChoice,'3a) Results summary'!H27,'3a) Results summary'!H27,'3a) Results summary'!H27,"Not reported",'3a) Results summary'!H27,'3a) Results summary'!H27,'3a) Results summary'!H27,'3a) Results summary'!H27,'3a) Results summary'!H27,'3a) Results summary'!H27) -> Not reported | D10: =CHOOSE(IntChoice,'3a) Results summary'!I27,'3a) Results summary'!I27,'3a) Results summary'!I27,"Not reported",'3a) Results summary'!I27,'3a) Results summary'!I27,'3a) Results summary'!I27,'3a) Results summary'!I27,'3a) Results summary'!I27,'3a) Results summary'!I27) -> Not reported | E10: =CHOOSE(IntChoice,"Social care costs","Social care costs","Social care costs","NHS & Social care costs", "Social care costs","Social care costs","Social care costs","Social care costs","Social care costs","Social care costs") -> Social care costs | F10: ='3a) Results summary'!H27 -> Not reported | G10: ='3a) Results summary'!I27 -> Not reported
B11: QALYs (monetised) | C11: =-'3a) Results summary'!H32 -> -1021742.941 | D11: =-'3a) Results summary'!I32 -> -1455.167488 | E11: QALYs (monetised) | F11: =-'3a) Results summary'!H32 -> -1021742.941 | G11: =-'3a) Results summary'!I32 -> -1455.167488
B28: 3c) Sensitivity analysis | C28: Intervention costs | D28: ='3a) Results summary'!I25 -> 708.6171046 | E28: =IF(D28="Not Reported",0,D28) -> 708.6171046
C29: =CHOOSE(IntChoice,"NHS costs","NHS costs","NHS costs","NHS and social care costs","NHS costs","NHS costs","NHS costs","NHS costs","NHS costs","NHS costs") -> NHS costs | D29: =CHOOSE(IntChoice,'3a) Results summary'!I26,'3a) Results summary'!I26,'3a) Results summary'!I26,'3a) Results summary'!I27,'3a) Results summary'!I26,'3a) Results summary'!I26,'3a) Results summary'!I26,'3a) Results summary'!I26,'3a) Results summary'!I26,'3a) Results summary'!I26) -> -347.9639669 | E29: =IF(D29="Not Reported",0,D29) -> -347.9639669
C30: Social care costs | D30: =CHOOSE(IntChoice,'3a) Results summary'!I27,'3a) Results summary'!I27,'3a) Results summary'!I27,"Not reported",'3a) Results summary'!I27,'3a) Results summary'!I27,'3a) Results summary'!I27,'3a) Results summary'!I27,'3a) Results summary'!I27,'3a) Results summary'!I27) -> Not reported | E30: =IF(D30="Not Reported",0,D30) -> 0
C31: £QALYs | D31: ='3a) Results summary'!I32 -> 1455.167488 | E31: 1455.167488
C32: QALYs | D32: ='3a) Results summary'!I31 -> 0.02425279146 | E32: 0.02425279146
C34: Confidence Intervals | D34: Lower | E34: Upper
C35: NHS Costs | D35: ='3a) Results summary'!J26 -> Not reported | E35: ='3a) Results summary'!K26 -> Not reported
C36: Social care costs | D36: ='3a) Results summary'!J27 -> Not reported | E36: ='3a) Results summary'!K27 -> Not reported
C37: QALYs | D37: ='3a) Results summary'!J31 -> Not reported | E37: ='3a) Results summary'!K31 -> Not reported
E38: Societal ROI (per £ spent on intervention) | F38: NMB
B39: Intervention costs | C39: Intervention costs | E39: =(SensQALY-SensHC-SensSC)/(SensIC*I40) -> 2.544577943 | F39: =SensQALY-SensHC-SensSC-SensIC*I40 -> 1094.51435 | G39: (£1 spent = £1 saved) | H39: Intervention costs | I39: ='3a) Results summary'!I25 -> 708.6171046 | J39: =0.01*I39 -> 7.086171046
C40: =D40*$I$39 -> 531.4628284 | D40: 0.75 | E40: 3.392770591 | F40: 1271.668626 | G40: =1 -> 1 | H40: IC multiplier | I40: 1
C41: 595.0462597 | D41: =D40+($D$60-$D$40)/20 -> 0.8397288972 | E41: 3.03023744 | F41: 1208.085195 | G41: =1 -> 1
C42: 658.629691 | D42: =D41+($D$60-$D$40)/20 -> 0.9294577943 | E42: 2.737701441 | F42: 1144.501764 | G42: =1 -> 1
C43: 722.2131224 | D43: 1.019186692 | E43: 2.49667501 | F43: 1080.918332 | G43: =1 -> 1
C44: 785.7965537 | D44: 1.108915589 | E44: 2.294654318 | F44: 1017.334901 | G44: =1 -> 1
C45: 849.379985 | D45: 1.198644486 | E45: 2.122879614 | F45: 953.7514696 | G45: =1 -> 1
C46: 912.9634163 | D46: 1.288373383 | E46: 1.975031444 | F46: 890.1680383 | G46: =1 -> 1
C47: 976.5468476 | D47: 1.37810228 | E47: 1.846436204 | F47: 826.584607 | G47: =1 -> 1
C48: 1040.130279 | D48: 1.467831177 | E48: 1.733563085 | F48: 763.0011757 | G48: =1 -> 1
C49: 1103.71371 | D49: 1.557560075 | E49: 1.633694896 | F49: 699.4177444 | G49: =1 -> 1 | J49: =SensQALY-SensHC-SensSC -> 1803.131455 | K49: =SensIC -> 708.6171046 | L49: =J49/K49 -> 2.544577943
C50: 1167.297142 | D50: 1.647288972 | E50: 1.544706477 | F50: 635.8343131 | G50: =1 -> 1
C51: 1230.880573 | D51: 1.737017869 | E51: 1.464911783 | F51: 572.2508818 | G51: =1 -> 1
C52: 1294.464004 | D52: 1.826746766 | E52: 1.392956041 | F52: 508.6674505 | G52: =1 -> 1
C53: 1358.047435 | D53: 1.916475663 | E53: 1.327738198 | F53: 445.0840192 | G53: =1 -> 1
C54: 1421.630867 | D54: 2.00620456 | E54: 1.268354182 | F54: 381.5005878 | G54: =1 -> 1
C55: 1485.214298 | D55: 2.095933458 | E55: 1.214054737 | F55: 317.9171565 | G55: =1 -> 1 | K55: =(D60-D40)/10 -> 0.1794577943
C56: 1548.797729 | D56: 2.185662355 | E56: 1.164213648 | F56: 254.3337252 | G56: =1 -> 1
C57: 1612.381161 | D57: 2.275391252 | E57: 1.118303475 | F57: 190.7502939 | G57: =1 -> 1
C58: 1675.964592 | D58: 2.365120149 | E58: 1.075876819 | F58: 127.1668626 | G58: =1 -> 1
C59: 1739.548023 | D59: 2.454849046 | E59: 1.036551696 | F59: 63.58343131 | G59: =1 -> 1
C60: 1803.131455 | D60: =(SensQALY-SensHC-SensSC)/SensIC -> 2.544577943 | E60: 1 | F60: 0 | G60: =1 -> 1
E62: Societal ROI (per £ spent on intervention) | F62: NMB | G62: (£1 spent = £1 saved)
B63: QALYs | C63: Incremental QALYs | E63: =((SensQALY+I63*SensQALY)-SensHC-SensSC)/SensIC -> 2.544577943 | F63: =(SensQALY+I63*SensQALY)-SensHC-SensSC-SensIC -> 1094.51435 | G63: =1 -> 1 | H63: Multiplier | I63: 0
C64: ='3a) Results summary'!$I$31+D64*'3a) Results summary'!$I$31 -> 0.006010885628 | D64: =((SensIC+SensHC+SensSC)/SensQALY)-1 -> -0.7521569574 | E64: 1 | F64: 0 | G64: =1 -> 1 | H64: QALYs | I64: ='3a) Results summary'!I32 -> 1455.167488
C65: ='3a) Results summary'!$I$31+D65*'3a) Results summary'!$I$31 -> 0.007835076211 | D65: =D64+($D$74-$D$64)/10 -> -0.6769412616 | E65: 1.154457794 | F65: 109.451435 | G65: =1 -> 1
C66: ='3a) Results summary'!$I$31+D66*'3a) Results summary'!$I$31 -> 0.009659266795 | D66: =D65+($D$74-$D$64)/10 -> -0.6017255659 | E66: 1.308915589 | F66: 218.90287 | G66: =1 -> 1
C67: ='3a) Results summary'!$I$31+D67*'3a) Results summary'!$I$31 -> 0.01148345738 | D67: =D66+($D$74-$D$64)/10 -> -0.5265098702 | E67: 1.463373383 | F67: 328.354305 | G67: =1 -> 1
C68: ='3a) Results summary'!$I$31+D68*'3a) Results summary'!$I$31 -> 0.01330764796 | D68: -0.4512941744 | E68: 1.617831177 | F68: 437.80574 | G68: =1 -> 1
C69: ='3a) Results summary'!$I$31+D69*'3a) Results summary'!$I$31 -> 0.01513183854 | D69: -0.3760784787 | E69: 1.772288972 | F69: 547.257175 | G69: =1 -> 1
C70: ='3a) Results summary'!$I$31+D70*'3a) Results summary'!$I$31 -> 0.01695602913 | D70: -0.300862783 | E70: 1.926746766 | F70: 656.70861 | G70: =1 -> 1
C71: ='3a) Results summary'!$I$31+D71*'3a) Results summary'!$I$31 -> 0.01878021971 | D71: -0.2256470872 | E71: 2.08120456 | F71: 766.160045 | G71: =1 -> 1
C72: ='3a) Results summary'!$I$31+D72*'3a) Results summary'!$I$31 -> 0.02060441029 | D72: -0.1504313915 | E72: 2.235662355 | F72: 875.61148 | G72: =1 -> 1
C73: ='3a) Results summary'!$I$31+D73*'3a) Results summary'!$I$31 -> 0.02242860088 | D73: -0.07521569574 | E73: 2.390120149 | F73: 985.062915 | G73: =1 -> 1
C74: ='3a) Results summary'!$I$31+D74*'3a) Results summary'!$I$31 -> 0.02425279146 | D74: 0 | E74: 2.544577943 | F74: 1094.51435 | G74: =1 -> 1
C75: ='3a) Results summary'!$I$31+D75*'3a) Results summary'!$I$31 -> 0.02607698204 | D75: =D74+($D$74-$D$64)/10 -> 0.07521569574 | E75: 2.699035738 | F75: 1203.965785 | G75: =1 -> 1
C76: ='3a) Results summary'!$I$31+D76*'3a) Results summary'!$I$31 -> 0.02790117263 | D76: =D75+($D$74-$D$64)/10 -> 0.1504313915 | E76: 2.853493532 | F76: 1313.41722 | G76: =1 -> 1
C77: ='3a) Results summary'!$I$31+D77*'3a) Results summary'!$I$31 -> 0.02972536321 | D77: 0.2256470872 | E77: 3.007951326 | F77: 1422.868655 | G77: =1 -> 1
C78: ='3a) Results summary'!$I$31+D78*'3a) Results summary'!$I$31 -> 0.03154955379 | D78: 0.300862783 | E78: 3.162409121 | F78: 1532.32009 | G78: =1 -> 1
C79: ='3a) Results summary'!$I$31+D79*'3a) Results summary'!$I$31 -> 0.03337374438 | D79: 0.3760784787 | E79: 3.316866915 | F79: 1641.771525 | G79: =1 -> 1
C80: ='3a) Results summary'!$I$31+D80*'3a) Results summary'!$I$31 -> 0.03519793496 | D80: 0.4512941744 | E80: 3.471324709 | F80: 1751.22296 | G80: =1 -> 1
C81: ='3a) Results summary'!$I$31+D81*'3a) Results summary'!$I$31 -> 0.03702212554 | D81: 0.5265098702 | E81: 3.625782504 | F81: 1860.674395 | G81: =1 -> 1
C82: ='3a) Results summary'!$I$31+D82*'3a) Results summary'!$I$31 -> 0.03884631613 | D82: 0.6017255659 | E82: 3.780240298 | F82: 1970.12583 | G82: =1 -> 1
C83: ='3a) Results summary'!$I$31+D83*'3a) Results summary'!$I$31 -> 0.04067050671 | D83: 0.6769412616 | E83: 3.934698092 | F83: 2079.577265 | G83: =1 -> 1
C84: ='3a) Results summary'!$I$31+D84*'3a) Results summary'!$I$31 -> 0.04249469729 | D84: 0.7521569574 | E84: 4.089155887 | F84: 2189.0287 | G84: 1
B88: =CHOOSE(IntChoice,"Incremental NHS Costs (per person)","Incremental NHS Costs (per person)","Incremental NHS Costs (per person)","Incremental NHS and Social Care Costs (per person)","Incremental NHS Costs (per person)","Incremental NHS Costs (per person)","Incremental NHS Costs (per person)","Incremental NHS Costs (per person)","Incremental NHS Costs (per person)","Incremental NHS Costs (per person)") -> Incremental NHS Costs (per person) | C88: Incremental healthcare costs | E88: ROI (per £ spent on intervention) | F88: NMB
E89: =(SensQALY-(SensHC+I89*SensHC)-SensSC)/SensIC -> 2.544577943 | F89: =SensQALY-(SensHC+I89*SensHC)-SensSC-SensIC -> 1094.51435 | G89: (£1 spent = £1 saved) | H89: Multiplier | I89: 0
C90: =SensHC+SensHC*D90 -> 746.5503831 | D90: =(SensQALY-SensIC-SensSC)/SensHC-1 -> -3.145481872 | E90: 1 | F90: 0 | G90: =1 -> 1 | H90: HC Cost | I90: ='3a) Results summary'!I26 -> -347.9639669
C91: 637.0989481 | D91: =D90+($D$100-$D$90)/10 -> -2.830933685 | E91: 1.154457794 | F91: 109.451435 | G91: =1 -> 1
C92: 527.6475131 | D92: =D91+($D$100-$D$90)/10 -> -2.516385498 | E92: 1.308915589 | F92: 218.90287 | G92: =1 -> 1
C93: 418.1960781 | D93: -2.20183731 | E93: 1.463373383 | F93: 328.354305 | G93: =1 -> 1
C94: 308.7446431 | D94: -1.887289123 | E94: 1.617831177 | F94: 437.80574 | G94: =1 -> 1
C95: 199.2932081 | D95: -1.572740936 | E95: 1.772288972 | F95: 547.257175 | G95: =1 -> 1
C96: 89.8417731 | D96: -1.258192749 | E96: 1.926746766 | F96: 656.70861 | G96: =1 -> 1
C97: -19.6096619 | D97: -0.9436445616 | E97: 2.08120456 | F97: 766.160045 | G97: =1 -> 1
C98: -129.0610969 | D98: -0.6290963744 | E98: 2.235662355 | F98: 875.61148 | G98: =1 -> 1
C99: -238.5125319 | D99: -0.3145481872 | E99: 2.390120149 | F99: 985.062915 | G99: =1 -> 1
C100: -347.9639669 | D100: 0 | E100: 2.544577943 | F100: 1094.51435 | G100: =1 -> 1
C101: -457.4154019 | D101: 0.3145481872 | E101: 2.699035738 | F101: 1203.965785 | G101: =1 -> 1
C102: -566.8668369 | D102: 0.6290963744 | E102: 2.853493532 | F102: 1313.41722 | G102: =1 -> 1
C103: -676.3182719 | D103: 0.9436445616 | E103: 3.007951326 | F103: 1422.868655 | G103: =1 -> 1
C104: -785.7697069 | D104: 1.258192749 | E104: 3.162409121 | F104: 1532.32009 | G104: =1 -> 1
C105: -895.2211419 | D105: 1.572740936 | E105: 3.316866915 | F105: 1641.771525 | G105: =1 -> 1
C106: -1004.672577 | D106: 1.887289123 | E106: 3.471324709 | F106: 1751.22296 | G106: =1 -> 1
C107: -1114.124012 | D107: 2.20183731 | E107: 3.625782504 | F107: 1860.674395 | G107: =1 -> 1
C108: -1223.575447 | D108: 2.516385498 | E108: 3.780240298 | F108: 1970.12583 | G108: =1 -> 1
C109: -1333.026882 | D109: 2.830933685 | E109: 3.934698092 | F109: 2079.577265 | G109: =1 -> 1
C110: -1442.478317 | D110: 3.145481872 | E110: 4.089155887 | F110: 2189.0287 | G110: =1 -> 1
B112: Social care costs | C112: Incremental social care costs | E112: ROI (per £ spent on intervention) | F112: NMB | G112: (£1 spent = £1 saved)
E113: =(SensQALY-SensHC-(SensSC+J113*SensSC))/SensIC -> 2.544577943 | F113: =SensQALY-SensHC-(SensSC+SensSC*J113)-SensIC -> 1094.51435 | G113: =1 -> 1 | I113: Multiplier | J113: 0
C114: =SensSC+SensSC*D114 -> 0 | D114: =IF(D30="Not reported",0,(SensQALY-SensIC-SensHC)/SensSC-1) -> 0 | E114: 2.544577943 | F114: 1094.51435 | G114: =1 -> 1 | I114: SC Cost | J114: ='3a) Results summary'!I27 -> Not reported
C115: 0 | D115: =D114+($D$124-$D$114)/10 -> 0 | E115: 2.544577943 | F115: 1094.51435 | G115: =1 -> 1
C116: 0 | D116: =D115+($D$124-$D$114)/10 -> 0 | E116: 2.544577943 | F116: 1094.51435 | G116: =1 -> 1
C117: 0 | D117: 0 | E117: 2.544577943 | F117: 1094.51435 | G117: =1 -> 1
C118: 0 | D118: 0 | E118: 2.544577943 | F118: 1094.51435 | G118: =1 -> 1
C119: 0 | D119: 0 | E119: 2.544577943 | F119: 1094.51435 | G119: =1 -> 1
C120: 0 | D120: 0 | E120: 2.544577943 | F120: 1094.51435 | G120: =1 -> 1
C121: 0 | D121: 0 | E121: 2.544577943 | F121: 1094.51435 | G121: =1 -> 1
C122: 0 | D122: 0 | E122: 2.544577943 | F122: 1094.51435 | G122: =1 -> 1
C123: 0 | D123: 0 | E123: 2.544577943 | F123: 1094.51435 | G123: =1 -> 1
C124: 0 | D124: 0 | E124: 2.544577943 | F124: 1094.51435 | G124: =1 -> 1
C125: 0 | D125: =D124+($D$124-$D$114)/10 -> 0 | E125: 2.544577943 | F125: 1094.51435 | G125: =1 -> 1
C126: 0 | D126: =D125+($D$124-$D$114)/10 -> 0 | E126: 2.544577943 | F126: 1094.51435 | G126: =1 -> 1
C127: 0 | D127: 0 | E127: 2.544577943 | F127: 1094.51435 | G127: =1 -> 1
C128: 0 | D128: 0 | E128: 2.544577943 | F128: 1094.51435 | G128: =1 -> 1
C129: 0 | D129: 0 | E129: 2.544577943 | F129: 1094.51435 | G129: =1 -> 1
C130: 0 | D130: 0 | E130: 2.544577943 | F130: 1094.51435 | G130: =1 -> 1
C131: 0 | D131: 0 | E131: 2.544577943 | F131: 1094.51435 | G131: =1 -> 1
C132: 0 | D132: 0 | E132: 2.544577943 | F132: 1094.51435 | G132: =1 -> 1
C133: 0 | D133: 0 | E133: 2.544577943 | F133: 1094.51435 | G133: =1 -> 1
C134: 0 | D134: =D133+($D$124-$D$114)/10 -> 0 | E134: 2.544577943 | F134: 1094.51435 | G134: 1
